Workbook

Sheet Protocol 1 (5nm)
A1: =IF(Data!$AE$2="DE","Messprotokoll",IF(Data!$AE$2="UK","Measurement protocol",IF(Data!$AE$2="FR","Rapport de mesure","Language Error"))) -> Measurement protocol
A4: =IF(Data!$AE$2 = "DE", "Prüfling:", IF(Data!$AE$2 = "UK","Test object:",IF(Data!$AE$2="FR","Objet testé:","Language Error"))) -> Test object: | N4: =IF(Data!$AE$2="DE","Hersteller",IF(Data!$AE$2="UK","Manufacturer",IF(Data!$AE$2="FR","Fabricant","Language Error"))) -> Manufacturer | BK4: =IF(Data!$AE$2="DE","Messdatei:",IF(Data!$AE$2="UK","Measurement file:",IF(Data!$AE$2="FR","Fichier de mesure:","Language Error"))) -> Measurement file: | CG4: =Data!Q18 -> M_000003.CSV
N5: =IF(Data!$AE$2="DE","Typ",IF(Data!$AE$2="UK","Type",IF(Data!$AE$2="FR","Type","Language Error"))) -> Type | BK5: =IF(Data!$AE$2="DE","Datum der Messung:",IF(Data!$AE$2="UK","Date of measurement:",IF(Data!$AE$2="FR","Date de mesure:","Language Error"))) -> Date of measurement: | CG5: =Data!Q23 -> 29.04.2024
N6: =IF(Data!$AE$2="DE","Modell",IF(Data!$AE$2="UK","Model",IF(Data!$AE$2="FR","Article","Language Error"))) -> Model | BK6: =IF(Data!$AE$2="DE","Uhrzeit der Messung:",IF(Data!$AE$2="UK","Time of measurement:",IF(Data!$AE$2="FR","Heure de mesure:","Language Error"))) -> Time of measurement: | CG6: =Data!Q21 -> 08:07:17
D23: R1 | I23: = | K23: =Data!K2 -> 82.78 | R23: Ra | W23: = | Y23: =Data!K1 -> 84.72 | AI23: =IF(Data!$AE$2="DE","Beleuchtungsstärke",IF(Data!$AE$2="UK","Illuminance",IF(Data!$AE$2="FR","Illuminance","Language Error"))) -> Illuminance | BN23: =Data!K33 -> 3202.16 | CI23: =IF(CI24="x","CIE1931",IF(CI24="u'","CIE1976",IF(CI24="u","CIE1960",""))) -> CIE1931
D24: R2 | I24: = | K24: =Data!K3 -> 90.11 | R24: Re | W24: = | Y24: =Data!Q27 -> 78.51 | AI24: Ee | BN24: =Data!Q25 -> 10.564 | CI24: =Data!J23 -> x | CL24: = | CN24: =Data!K23 -> 0.3819
D25: R3 | I25: = | K25: =Data!K4 -> 95.97 | R25: GAI | W25: = | Y25: =Data!Q28 -> 70.46 | AI25: LER | BN25: =Data!Q26 -> 303.1 | CI25: =Data!J24 -> y | CL25: = | CN25: =Data!K24 -> 0.3842
D26: R4 | I26: = | K26: =Data!K5 -> 83.5
D27: R5 | I27: = | K27: =Data!K6 -> 82.71 | R27: TLCI | W27: = | Y27: =Data!Q30 -> 75 | AI27: =IF(Data!$AE$2 = "DE", "Ähnlichste Farbtemperatur (CCT)", IF(Data!$AE$2 = "UK","Correlated Color Temperature (CCT)",IF(Data!$AE$2="FR","Temp. de couleur proximale (CCT)","Language Error"))) -> Correlated Color Temperature (CCT) | BN27: =Data!K30 -> 4014 | CI27: =IF(CI28="x","CIE1931",IF(CI28="u'","CIE1976",IF(CI28="u","CIE1960",""))) -> CIE1976
D28: R6 | I28: = | K28: =Data!K7 -> 86.5 | AI28: Duv | BN28: =Data!K31 -> 0.003 | CI28: =Data!J25 -> u' | CL28: = | CN28: =Data!K25 -> 0.2231
D29: R7 | I29: = | K29: =Data!K8 -> 88.13 | R29: PPFD [µmol/m²s] | CI29: =Data!J26 -> v' | CL29: = | CN29: =Data!K26 -> 0.505
D30: R8 | I30: = | K30: =Data!K9 -> 68.09 | AI30: =IF(Data!$AE$2 = "DE", "Farbreinheit",IF(Data!$AE$2 = "UK","Saturation",IF(Data!$AE$2="FR","Saturation","Language Error"))) -> Saturation | BN30: =Data!K39 -> 29.9
D31: R9 | I31: = | K31: =Data!K10 -> 17.21 | R31: =Data!K158 -> 45.52 | CI31: =IF(CI32="x","CIE1931",IF(CI32="u'","CIE1976",IF(CI32="u","CIE1960",""))) -> CIE1960
D32: R10 | I32: = | K32: =Data!K11 -> 76.65 | AI32: =IF(Data!$AE$2 = "DE", "Dominante Wellenlänge", IF(Data!$AE$2 = "UK", "Dominant wavelength",IF(Data!$AE$2="FR","Longueur d'onde dominante (λD)","Language Error"))) -> Dominant wavelength | BN32: =Data!K40 & " nm" -> 577 nm | CI32: =Data!J27 -> u | CL32: = | CN32: =Data!K27 -> 0.2231
D33: R11 | I33: = | K33: =Data!K12 -> 82.47 | AI33: =IF(Data!$AE$2 = "DE", "Peak-Wellenlänge",IF(Data!$AE$2 = "UK", "Peak wavelength",IF(Data!$AE$2="FR","Pic courbe spectrale (λP)","Language Error"))) -> Peak wavelength | BN33: =Data!K20 & " nm" -> 595 nm | CI33: =Data!J28 -> v | CL33: = | CN33: =Data!K28 -> 0.3367
D34: R12 | I34: = | K34: =Data!K13 -> 64.47
D35: R13 | I35: = | K35: =Data!K14 -> 84.59 | AI35: =IF(Data!$AE$2 = "DE", "Flickerfrequenz", IF(Data!$AE$2 = "UK","Flicker frequency",IF(Data!$AE$2="FR","Fréquence flicker","Language Error"))) -> Flicker frequency | BN35: =Data!K36 -> 99.9 | CI35: TM30
D36: R14 | I36: = | K36: =Data!K15 -> 97.9 | AI36: =IF(Data!$AE$2 = "DE", "Prozent Flicker", IF(Data!$AE$2 = "UK","Percent Flicker",IF(Data!$AE$2="FR","% flicker","Language Error"))) -> Percent Flicker | BN36: =Data!K37 -> 17.2 | CI36: Rf | CN36: = | CP36: =Data!K43 -> 86.1
D37: R15 | I37: = | K37: =Data!K16 -> 76.53 | AI37: =IF(Data!$AE$2 = "DE", "Flickerindex", IF(Data!$AE$2 = "UK","Flicker index",IF(Data!$AE$2="FR","Index flicker","Language Error"))) -> Flicker index | BN37: =Data!K35 -> 0.051 | CI37: Rg | CN37: = | CP37: =Data!K44 -> 95.2
C40: [nm] | I40: mW/m²/nm | Q40: [nm] | W40: mW/m²/nm | AE40: [nm] | AK40: mW/m²/nm | AS40: [nm] | AY40: mW/m²/nm | BG40: [nm] | BM40: mW/m²/nm | BU40: [nm] | CA40: mW/m²/nm | CI40: [nm] | CO40: mW/m²/nm
C41: =Data!G1 -> 380 | I41: =Data!H1 -> 0.68384 | Q41: =Data!G13 -> 440 | W41: =Data!H13 -> 23.31664 | AE41: =Data!G25 -> 500 | AK41: =Data!H25 -> 27.90953 | AS41: =Data!G37 -> 560 | AY41: =Data!H37 -> 47.0494 | BG41: =Data!G49 -> 620 | BM41: =Data!H49 -> 47.24834 | BU41: =Data!G61 -> 680 | CA41: =Data!H61 -> 17.91291 | CI41: =Data!G73 -> 740 | CO41: =Data!H73 -> 11.0448
C42: =Data!G2 -> 385 | I42: =Data!H2 -> 0.74607 | Q42: =Data!G14 -> 445 | W42: =Data!H14 -> 38.41972 | AE42: =Data!G26 -> 505 | AK42: =Data!H26 -> 31.27134 | AS42: =Data!G38 -> 565 | AY42: =Data!H38 -> 48.18798 | BG42: =Data!G50 -> 625 | BM42: =Data!H50 -> 44.70878 | BU42: =Data!G62 -> 685 | CA42: =Data!H62 -> 16.05528 | CI42: =Data!G74 -> 745 | CO42: =Data!H74 -> 11.26281
C43: =Data!G3 -> 390 | I43: =Data!H3 -> 0.91387 | Q43: =Data!G15 -> 450 | W43: =Data!H15 -> 50.48501 | AE43: =Data!G27 -> 510 | AK43: =Data!H27 -> 33.84137 | AS43: =Data!G39 -> 570 | AY43: =Data!H39 -> 49.69511 | BG43: =Data!G51 -> 630 | BM43: =Data!H51 -> 41.86608 | BU43: =Data!G63 -> 690 | CA43: =Data!H63 -> 14.52068 | CI43: =Data!G75 -> 750 | CO43: =Data!H75 -> 11.17335
C44: =Data!G4 -> 395 | I44: =Data!H4 -> 1.25551 | Q44: =Data!G16 -> 455 | W44: =Data!H16 -> 48.12591 | AE44: =Data!G28 -> 515 | AK44: =Data!H28 -> 35.92001 | AS44: =Data!G40 -> 575 | AY44: =Data!H40 -> 51.01311 | BG44: =Data!G52 -> 635 | BM44: =Data!H52 -> 39.11513 | BU44: =Data!G64 -> 695 | CA44: =Data!H64 -> 13.57545 | CI44: =Data!G76 -> 755 | CO44: =Data!H76 -> 9.80141
C45: =Data!G5 -> 400 | I45: =Data!H5 -> 1.80046 | Q45: =Data!G17 -> 460 | W45: =Data!H17 -> 37.25754 | AE45: =Data!G29 -> 520 | AK45: =Data!H29 -> 37.57893 | AS45: =Data!G41 -> 580 | AY45: =Data!H41 -> 52.25586 | BG45: =Data!G53 -> 640 | BM45: =Data!H53 -> 36.29719 | BU45: =Data!G65 -> 700 | CA45: =Data!H65 -> 13.04884 | CI45: =Data!G77 -> 760 | CO45: =Data!H77 -> 7.57485
C46: =Data!G6 -> 405 | I46: =Data!H6 -> 2.15744 | Q46: =Data!G18 -> 465 | W46: =Data!H18 -> 29.61403 | AE46: =Data!G30 -> 525 | AK46: =Data!H30 -> 38.95928 | AS46: =Data!G42 -> 585 | AY46: =Data!H42 -> 53.20884 | BG46: =Data!G54 -> 645 | BM46: =Data!H54 -> 33.35411 | BU46: =Data!G66 -> 705 | CA46: =Data!H66 -> 12.82012 | CI46: =Data!G78 -> 765 | CO46: =Data!H78 -> 7.42204
C47: =Data!G7 -> 410 | I47: =Data!H7 -> 2.73957 | Q47: =Data!G19 -> 470 | W47: =Data!H19 -> 24.33552 | AE47: =Data!G31 -> 530 | AK47: =Data!H31 -> 40.10447 | AS47: =Data!G43 -> 590 | AY47: =Data!H43 -> 53.49827 | BG47: =Data!G55 -> 650 | BM47: =Data!H55 -> 30.46853 | BU47: =Data!G67 -> 710 | CA47: =Data!H67 -> 12.3506 | CI47: =Data!G79 -> 770 | CO47: =Data!H79 -> 9.35777
C48: =Data!G8 -> 415 | I48: =Data!H8 -> 3.62239 | Q48: =Data!G20 -> 475 | W48: =Data!H20 -> 20.10695 | AE48: =Data!G32 -> 535 | AK48: =Data!H32 -> 41.30423 | AS48: =Data!G44 -> 595 | AY48: =Data!H44 -> 53.85181 | BG48: =Data!G56 -> 655 | BM48: =Data!H56 -> 27.64569 | BU48: =Data!G68 -> 715 | CA48: =Data!H68 -> 11.11841 | CI48: =Data!G80 -> 775 | CO48: =Data!H80 -> 10.22785
C49: =Data!G9 -> 420 | I49: =Data!H9 -> 4.63744 | Q49: =Data!G21 -> 480 | W49: =Data!H21 -> 18.81181 | AE49: =Data!G33 -> 540 | AK49: =Data!H33 -> 42.23973 | AS49: =Data!G45 -> 600 | AY49: =Data!H45 -> 53.78582 | BG49: =Data!G57 -> 660 | BM49: =Data!H57 -> 25.30733 | BU49: =Data!G69 -> 720 | CA49: =Data!H69 -> 10.23266 | CI49: =Data!G81 -> 780 | CO49: =Data!H81 -> 10.4739
C50: =Data!G10 -> 425 | I50: =Data!H10 -> 6.16806 | Q50: =Data!G22 -> 485 | W50: =Data!H22 -> 19.29689 | AE50: =Data!G34 -> 545 | AK50: =Data!H34 -> 43.3828 | AS50: =Data!G46 -> 605 | AY50: =Data!H46 -> 52.93155 | BG50: =Data!G58 -> 665 | BM50: =Data!H58 -> 23.26774 | BU50: =Data!G70 -> 725 | CA50: =Data!H70 -> 9.8008
C51: =Data!G11 -> 430 | I51: =Data!H11 -> 8.7165 | Q51: =Data!G23 -> 490 | W51: =Data!H23 -> 21.2507 | AE51: =Data!G35 -> 550 | AK51: =Data!H35 -> 44.50492 | AS51: =Data!G47 -> 610 | AY51: =Data!H47 -> 51.47096 | BG51: =Data!G59 -> 670 | BM51: =Data!H59 -> 21.50805 | BU51: =Data!G71 -> 730 | CA51: =Data!H71 -> 10.16199
C52: =Data!G12 -> 435 | I52: =Data!H12 -> 13.82133 | Q52: =Data!G24 -> 495 | W52: =Data!H24 -> 24.3909 | AE52: =Data!G36 -> 555 | AK52: =Data!H36 -> 45.70971 | AS52: =Data!G48 -> 615 | AY52: =Data!H48 -> 49.46273 | BG52: =Data!G60 -> 675 | BM52: =Data!H60 -> 19.6887 | BU52: =Data!G72 -> 735 | CA52: =Data!H72 -> 10.65001
A54: =IF(Data!$AE$2="DE","Firma",IF(Data!$AE$2="UK","Company",IF(Data!$AE$2="FR","Société","Language Error"))) -> Company
A55: =IF(Data!$AE$2="DE","Adresse",IF(Data!$AE$2="UK","Address",IF(Data!$AE$2="FR","Adresse","Language Error"))) -> Address
A56: =IF(Data!$AE$2="DE","PLZ Ort",IF(Data!$AE$2="UK","ZIP City",IF(Data!$AE$2="FR","Code postal Ville","Language Error"))) -> ZIP City
A58: =IF(Data!$AE$2="DE","Prüfort,",IF(Data!$AE$2="UK","Test location,",IF(Data!$AE$2="FR","Lieu de rapport, ","Language Error"))) -> Test location, | P58: =IF(Data!$AE$2="DE","Datum",IF(Data!$AE$2="UK","Date",IF(Data!$AE$2="FR","Date","Language Error"))) -> Date | BL58: =IF(Data!$AE$2="DE","Vorname, Nachname Prüfer",IF(Data!$AE$2="UK","First, last name of inspector",IF(Data!$AE$2="FR","Prénom Nom du testeur","Language Error"))) -> First, last name of inspector | CG58: =IF(Data!$AE$2="DE","Telefonnummer",IF(Data!$AE$2="UK","Phone number",IF(Data!$AE$2="FR","N° téléphone","Language Error"))) -> Phone number

Sheet Protocol 2 (native)
A1: =IF(Data!$AE$2="DE","Messprotokoll",IF(Data!$AE$2="UK","Measurement protocol",IF(Data!$AE$2="FR","Rapport de mesure","Language Error"))) -> Measurement protocol
A4: =IF(Data!$AE$2 = "DE", "Prüfling:", IF(Data!$AE$2 = "UK","Test object:",IF(Data!$AE$2="FR","Objet testé:","Language Error"))) -> Test object: | N4: ='Protocol 1 (5nm)'!N4:BG4 -> Manufacturer | BK4: =IF(Data!$AE$2="DE","Messdatei:",IF(Data!$AE$2="UK","Measurement file:",IF(Data!$AE$2="FR","Fichier de mesure:","Language Error"))) -> Measurement file: | CG4: =Data!Q18 -> M_000003.CSV
N5: ='Protocol 1 (5nm)'!N5:BG5 -> Type | BK5: =IF(Data!$AE$2="DE","Datum der Messung:",IF(Data!$AE$2="UK","Date of measurement:",IF(Data!$AE$2="FR","Date de mesure:","Language Error"))) -> Date of measurement: | CG5: =Data!Q23 -> 29.04.2024
N6: ='Protocol 1 (5nm)'!N6:BG6 -> Model | BK6: =IF(Data!$AE$2="DE","Uhrzeit der Messung:",IF(Data!$AE$2="UK","Time of measurement:",IF(Data!$AE$2="FR","Heure de mesure:","Language Error"))) -> Time of measurement: | CG6: =Data!Q21 -> 08:07:17
B22: [nm] | G22: mW/m²/nm | P22: [nm] | U22: mW/m²/nm | AD22: [nm] | AI22: mW/m²/nm | AR22: [nm] | AW22: mW/m²/nm | BF22: [nm] | BK22: mW/m²/nm | BT22: [nm] | BY22: mW/m²/nm | CH22: [nm] | CM22: mW/m²/nm
B23: =Data!$G1 -> 380 | G23: =Data!$H1 -> 0.68384 | P23: =Data!$G32 -> 535 | U23: =Data!$H32 -> 41.30423 | AD23: =IF(Data!$G63="","",Data!$G63) -> 690 | AI23: =IF(Data!$H63="","",Data!$H63) -> 14.52068 | AR23: =IF(Data!$G94="","",Data!$G94) ->  | AW23: =IF(Data!$H94="","",Data!$H94) ->  | BF23: =IF(Data!$G125="","",Data!$G125) ->  | BK23: =IF(Data!$H125="","",Data!$H125) ->  | BT23: =IF(Data!$G156="","",Data!$G156) ->  | BY23: =IF(Data!$H156="","",Data!$H156) ->  | CH23: =IF(Data!$G187="","",Data!$G187) ->  | CM23: =IF(Data!$H187="","",Data!$H187) -> 
B24: =Data!$G2 -> 385 | G24: =Data!$H2 -> 0.74607 | P24: =Data!$G33 -> 540 | U24: =Data!$H33 -> 42.23973 | AD24: =IF(Data!$G64="","",Data!$G64) -> 695 | AI24: =IF(Data!$H64="","",Data!$H64) -> 13.57545 | AR24: =IF(Data!$G95="","",Data!$G95) ->  | AW24: =IF(Data!$H95="","",Data!$H95) ->  | BF24: =IF(Data!$G126="","",Data!$G126) ->  | BK24: =IF(Data!$H126="","",Data!$H126) ->  | BT24: =IF(Data!$G157="","",Data!$G157) ->  | BY24: =IF(Data!$H157="","",Data!$H157) ->  | CH24: =IF(Data!$G188="","",Data!$G188) ->  | CM24: =IF(Data!$H188="","",Data!$H188) -> 
B25: =Data!$G3 -> 390 | G25: =Data!$H3 -> 0.91387 | P25: =Data!$G34 -> 545 | U25: =Data!$H34 -> 43.3828 | AD25: =IF(Data!$G65="","",Data!$G65) -> 700 | AI25: =IF(Data!$H65="","",Data!$H65) -> 13.04884 | AR25: =IF(Data!$G96="","",Data!$G96) ->  | AW25: =IF(Data!$H96="","",Data!$H96) ->  | BF25: =IF(Data!$G127="","",Data!$G127) ->  | BK25: =IF(Data!$H127="","",Data!$H127) ->  | BT25: =IF(Data!$G158="","",Data!$G158) ->  | BY25: =IF(Data!$H158="","",Data!$H158) ->  | CH25: =IF(Data!$G189="","",Data!$G189) ->  | CM25: =IF(Data!$H189="","",Data!$H189) -> 
B26: =Data!$G4 -> 395 | G26: =Data!$H4 -> 1.25551 | P26: =Data!$G35 -> 550 | U26: =Data!$H35 -> 44.50492 | AD26: =IF(Data!$G66="","",Data!$G66) -> 705 | AI26: =IF(Data!$H66="","",Data!$H66) -> 12.82012 | AR26: =IF(Data!$G97="","",Data!$G97) ->  | AW26: =IF(Data!$H97="","",Data!$H97) ->  | BF26: =IF(Data!$G128="","",Data!$G128) ->  | BK26: =IF(Data!$H128="","",Data!$H128) ->  | BT26: =IF(Data!$G159="","",Data!$G159) ->  | BY26: =IF(Data!$H159="","",Data!$H159) ->  | CH26: =IF(Data!$G190="","",Data!$G190) ->  | CM26: =IF(Data!$H190="","",Data!$H190) -> 
B27: =Data!$G5 -> 400 | G27: =Data!$H5 -> 1.80046 | P27: =Data!$G36 -> 555 | U27: =Data!$H36 -> 45.70971 | AD27: =IF(Data!$G67="","",Data!$G67) -> 710 | AI27: =IF(Data!$H67="","",Data!$H67) -> 12.3506 | AR27: =IF(Data!$G98="","",Data!$G98) ->  | AW27: =IF(Data!$H98="","",Data!$H98) ->  | BF27: =IF(Data!$G129="","",Data!$G129) ->  | BK27: =IF(Data!$H129="","",Data!$H129) ->  | BT27: =IF(Data!$G160="","",Data!$G160) ->  | BY27: =IF(Data!$H160="","",Data!$H160) ->  | CH27: =IF(Data!$G191="","",Data!$G191) ->  | CM27: =IF(Data!$H191="","",Data!$H191) -> 
B28: =Data!$G6 -> 405 | G28: =Data!$H6 -> 2.15744 | P28: =Data!$G37 -> 560 | U28: =Data!$H37 -> 47.0494 | AD28: =IF(Data!$G68="","",Data!$G68) -> 715 | AI28: =IF(Data!$H68="","",Data!$H68) -> 11.11841 | AR28: =IF(Data!$G99="","",Data!$G99) ->  | AW28: =IF(Data!$H99="","",Data!$H99) ->  | BF28: =IF(Data!$G130="","",Data!$G130) ->  | BK28: =IF(Data!$H130="","",Data!$H130) ->  | BT28: =IF(Data!$G161="","",Data!$G161) ->  | BY28: =IF(Data!$H161="","",Data!$H161) ->  | CH28: =IF(Data!$G192="","",Data!$G192) ->  | CM28: =IF(Data!$H192="","",Data!$H192) -> 
B29: =Data!$G7 -> 410 | G29: =Data!$H7 -> 2.73957 | P29: =Data!$G38 -> 565 | U29: =Data!$H38 -> 48.18798 | AD29: =IF(Data!$G69="","",Data!$G69) -> 720 | AI29: =IF(Data!$H69="","",Data!$H69) -> 10.23266 | AR29: =IF(Data!$G100="","",Data!$G100) ->  | AW29: =IF(Data!$H100="","",Data!$H100) ->  | BF29: =IF(Data!$G131="","",Data!$G131) ->  | BK29: =IF(Data!$H131="","",Data!$H131) ->  | BT29: =IF(Data!$G162="","",Data!$G162) ->  | BY29: =IF(Data!$H162="","",Data!$H162) ->  | CH29: =IF(Data!$G193="","",Data!$G193) ->  | CM29: =IF(Data!$H193="","",Data!$H193) -> 
B30: =Data!$G8 -> 415 | G30: =Data!$H8 -> 3.62239 | P30: =Data!$G39 -> 570 | U30: =Data!$H39 -> 49.69511 | AD30: =IF(Data!$G70="","",Data!$G70) -> 725 | AI30: =IF(Data!$H70="","",Data!$H70) -> 9.8008 | AR30: =IF(Data!$G101="","",Data!$G101) ->  | AW30: =IF(Data!$H101="","",Data!$H101) ->  | BF30: =IF(Data!$G132="","",Data!$G132) ->  | BK30: =IF(Data!$H132="","",Data!$H132) ->  | BT30: =IF(Data!$G163="","",Data!$G163) ->  | BY30: =IF(Data!$H163="","",Data!$H163) ->  | CH30: =IF(Data!$G194="","",Data!$G194) ->  | CM30: =IF(Data!$H194="","",Data!$H194) -> 
B31: =Data!$G9 -> 420 | G31: =Data!$H9 -> 4.63744 | P31: =Data!$G40 -> 575 | U31: =Data!$H40 -> 51.01311 | AD31: =IF(Data!$G71="","",Data!$G71) -> 730 | AI31: =IF(Data!$H71="","",Data!$H71) -> 10.16199 | AR31: =IF(Data!$G102="","",Data!$G102) ->  | AW31: =IF(Data!$H102="","",Data!$H102) ->  | BF31: =IF(Data!$G133="","",Data!$G133) ->  | BK31: =IF(Data!$H133="","",Data!$H133) ->  | BT31: =IF(Data!$G164="","",Data!$G164) ->  | BY31: =IF(Data!$H164="","",Data!$H164) ->  | CH31: =IF(Data!$G195="","",Data!$G195) ->  | CM31: =IF(Data!$H195="","",Data!$H195) -> 
B32: =Data!$G10 -> 425 | G32: =Data!$H10 -> 6.16806 | P32: =Data!$G41 -> 580 | U32: =Data!$H41 -> 52.25586 | AD32: =IF(Data!$G72="","",Data!$G72) -> 735 | AI32: =IF(Data!$H72="","",Data!$H72) -> 10.65001 | AR32: =IF(Data!$G103="","",Data!$G103) ->  | AW32: =IF(Data!$H103="","",Data!$H103) ->  | BF32: =IF(Data!$G134="","",Data!$G134) ->  | BK32: =IF(Data!$H134="","",Data!$H134) ->  | BT32: =IF(Data!$G165="","",Data!$G165) ->  | BY32: =IF(Data!$H165="","",Data!$H165) ->  | CH32: =IF(Data!$G196="","",Data!$G196) ->  | CM32: =IF(Data!$H196="","",Data!$H196) -> 
B33: =Data!$G11 -> 430 | G33: =Data!$H11 -> 8.7165 | P33: =Data!$G42 -> 585 | U33: =Data!$H42 -> 53.20884 | AD33: =IF(Data!$G73="","",Data!$G73) -> 740 | AI33: =IF(Data!$H73="","",Data!$H73) -> 11.0448 | AR33: =IF(Data!$G104="","",Data!$G104) ->  | AW33: =IF(Data!$H104="","",Data!$H104) ->  | BF33: =IF(Data!$G135="","",Data!$G135) ->  | BK33: =IF(Data!$H135="","",Data!$H135) ->  | BT33: =IF(Data!$G166="","",Data!$G166) ->  | BY33: =IF(Data!$H166="","",Data!$H166) ->  | CH33: =IF(Data!$G197="","",Data!$G197) ->  | CM33: =IF(Data!$H197="","",Data!$H197) -> 
B34: =Data!$G12 -> 435 | G34: =Data!$H12 -> 13.82133 | P34: =Data!$G43 -> 590 | U34: =Data!$H43 -> 53.49827 | AD34: =IF(Data!$G74="","",Data!$G74) -> 745 | AI34: =IF(Data!$H74="","",Data!$H74) -> 11.26281 | AR34: =IF(Data!$G105="","",Data!$G105) ->  | AW34: =IF(Data!$H105="","",Data!$H105) ->  | BF34: =IF(Data!$G136="","",Data!$G136) ->  | BK34: =IF(Data!$H136="","",Data!$H136) ->  | BT34: =IF(Data!$G167="","",Data!$G167) ->  | BY34: =IF(Data!$H167="","",Data!$H167) ->  | CH34: =IF(Data!$G198="","",Data!$G198) ->  | CM34: =IF(Data!$H198="","",Data!$H198) -> 
B35: =Data!$G13 -> 440 | G35: =Data!$H13 -> 23.31664 | P35: =Data!$G44 -> 595 | U35: =Data!$H44 -> 53.85181 | AD35: =IF(Data!$G75="","",Data!$G75) -> 750 | AI35: =IF(Data!$H75="","",Data!$H75) -> 11.17335 | AR35: =IF(Data!$G106="","",Data!$G106) ->  | AW35: =IF(Data!$H106="","",Data!$H106) ->  | BF35: =IF(Data!$G137="","",Data!$G137) ->  | BK35: =IF(Data!$H137="","",Data!$H137) ->  | BT35: =IF(Data!$G168="","",Data!$G168) ->  | BY35: =IF(Data!$H168="","",Data!$H168) ->  | CH35: =IF(Data!$G199="","",Data!$G199) ->  | CM35: =IF(Data!$H199="","",Data!$H199) -> 
B36: =Data!$G14 -> 445 | G36: =Data!$H14 -> 38.41972 | P36: =Data!$G45 -> 600 | U36: =Data!$H45 -> 53.78582 | AD36: =IF(Data!$G76="","",Data!$G76) -> 755 | AI36: =IF(Data!$H76="","",Data!$H76) -> 9.80141 | AR36: =IF(Data!$G107="","",Data!$G107) ->  | AW36: =IF(Data!$H107="","",Data!$H107) ->  | BF36: =IF(Data!$G138="","",Data!$G138) ->  | BK36: =IF(Data!$H138="","",Data!$H138) ->  | BT36: =IF(Data!$G169="","",Data!$G169) ->  | BY36: =IF(Data!$H169="","",Data!$H169) ->  | CH36: =IF(Data!$G200="","",Data!$G200) ->  | CM36: =IF(Data!$H200="","",Data!$H200) -> 
B37: =Data!$G15 -> 450 | G37: =Data!$H15 -> 50.48501 | P37: =Data!$G46 -> 605 | U37: =Data!$H46 -> 52.93155 | AD37: =IF(Data!$G77="","",Data!$G77) -> 760 | AI37: =IF(Data!$H77="","",Data!$H77) -> 7.57485 | AR37: =IF(Data!$G108="","",Data!$G108) ->  | AW37: =IF(Data!$H108="","",Data!$H108) ->  | BF37: =IF(Data!$G139="","",Data!$G139) ->  | BK37: =IF(Data!$H139="","",Data!$H139) ->  | BT37: =IF(Data!$G170="","",Data!$G170) ->  | BY37: =IF(Data!$H170="","",Data!$H170) ->  | CH37: =IF(Data!$G201="","",Data!$G201) ->  | CM37: =IF(Data!$H201="","",Data!$H201) -> 
B38: =Data!$G16 -> 455 | G38: =Data!$H16 -> 48.12591 | P38: =Data!$G47 -> 610 | U38: =Data!$H47 -> 51.47096 | AD38: =IF(Data!$G78="","",Data!$G78) -> 765 | AI38: =IF(Data!$H78="","",Data!$H78) -> 7.42204 | AR38: =IF(Data!$G109="","",Data!$G109) ->  | AW38: =IF(Data!$H109="","",Data!$H109) ->  | BF38: =IF(Data!$G140="","",Data!$G140) ->  | BK38: =IF(Data!$H140="","",Data!$H140) ->  | BT38: =IF(Data!$G171="","",Data!$G171) ->  | BY38: =IF(Data!$H171="","",Data!$H171) ->  | CH38: =IF(Data!$G202="","",Data!$G202) ->  | CM38: =IF(Data!$H202="","",Data!$H202) -> 
B39: =Data!$G17 -> 460 | G39: =Data!$H17 -> 37.25754 | P39: =Data!$G48 -> 615 | U39: =Data!$H48 -> 49.46273 | AD39: =IF(Data!$G79="","",Data!$G79) -> 770 | AI39: =IF(Data!$H79="","",Data!$H79) -> 9.35777 | AR39: =IF(Data!$G110="","",Data!$G110) ->  | AW39: =IF(Data!$H110="","",Data!$H110) ->  | BF39: =IF(Data!$G141="","",Data!$G141) ->  | BK39: =IF(Data!$H141="","",Data!$H141) ->  | BT39: =IF(Data!$G172="","",Data!$G172) ->  | BY39: =IF(Data!$H172="","",Data!$H172) ->  | CH39: =IF(Data!$G203="","",Data!$G203) ->  | CM39: =IF(Data!$H203="","",Data!$H203) -> 
B40: =Data!$G18 -> 465 | G40: =Data!$H18 -> 29.61403 | P40: =Data!$G49 -> 620 | U40: =Data!$H49 -> 47.24834 | AD40: =IF(Data!$G80="","",Data!$G80) -> 775 | AI40: =IF(Data!$H80="","",Data!$H80) -> 10.22785 | AR40: =IF(Data!$G111="","",Data!$G111) ->  | AW40: =IF(Data!$H111="","",Data!$H111) ->  | BF40: =IF(Data!$G142="","",Data!$G142) ->  | BK40: =IF(Data!$H142="","",Data!$H142) ->  | BT40: =IF(Data!$G173="","",Data!$G173) ->  | BY40: =IF(Data!$H173="","",Data!$H173) ->  | CH40: =IF(Data!$G204="","",Data!$G204) ->  | CM40: =IF(Data!$H204="","",Data!$H204) -> 
B41: =Data!$G19 -> 470 | G41: =Data!$H19 -> 24.33552 | P41: =Data!$G50 -> 625 | U41: =Data!$H50 -> 44.70878 | AD41: =IF(Data!$G81="","",Data!$G81) -> 780 | AI41: =IF(Data!$H81="","",Data!$H81) -> 10.4739 | AR41: =IF(Data!$G112="","",Data!$G112) ->  | AW41: =IF(Data!$H112="","",Data!$H112) ->  | BF41: =IF(Data!$G143="","",Data!$G143) ->  | BK41: =IF(Data!$H143="","",Data!$H143) ->  | BT41: =IF(Data!$G174="","",Data!$G174) ->  | BY41: =IF(Data!$H174="","",Data!$H174) ->  | CH41: =IF(Data!$G205="","",Data!$G205) ->  | CM41: =IF(Data!$H205="","",Data!$H205) -> 
B42: =Data!$G20 -> 475 | G42: =Data!$H20 -> 20.10695 | P42: =Data!$G51 -> 630 | U42: =Data!$H51 -> 41.86608 | AD42: =IF(Data!$G82="","",Data!$G82) ->  | AI42: =IF(Data!$H82="","",Data!$H82) ->  | AR42: =IF(Data!$G113="","",Data!$G113) ->  | AW42: =IF(Data!$H113="","",Data!$H113) ->  | BF42: =IF(Data!$G144="","",Data!$G144) ->  | BK42: =IF(Data!$H144="","",Data!$H144) ->  | BT42: =IF(Data!$G175="","",Data!$G175) ->  | BY42: =IF(Data!$H175="","",Data!$H175) ->  | CH42: =IF(Data!$G206="","",Data!$G206) ->  | CM42: =IF(Data!$H206="","",Data!$H206) -> 
B43: =Data!$G21 -> 480 | G43: =Data!$H21 -> 18.81181 | P43: =Data!$G52 -> 635 | U43: =Data!$H52 -> 39.11513 | AD43: =IF(Data!$G83="","",Data!$G83) ->  | AI43: =IF(Data!$H83="","",Data!$H83) ->  | AR43: =IF(Data!$G114="","",Data!$G114) ->  | AW43: =IF(Data!$H114="","",Data!$H114) ->  | BF43: =IF(Data!$G145="","",Data!$G145) ->  | BK43: =IF(Data!$H145="","",Data!$H145) ->  | BT43: =IF(Data!$G176="","",Data!$G176) ->  | BY43: =IF(Data!$H176="","",Data!$H176) ->  | CH43: =IF(Data!$G207="","",Data!$G207) ->  | CM43: =IF(Data!$H207="","",Data!$H207) -> 
B44: =Data!$G22 -> 485 | G44: =Data!$H22 -> 19.29689 | P44: =Data!$G53 -> 640 | U44: =Data!$H53 -> 36.29719 | AD44: =IF(Data!$G84="","",Data!$G84) ->  | AI44: =IF(Data!$H84="","",Data!$H84) ->  | AR44: =IF(Data!$G115="","",Data!$G115) ->  | AW44: =IF(Data!$H115="","",Data!$H115) ->  | BF44: =IF(Data!$G146="","",Data!$G146) ->  | BK44: =IF(Data!$H146="","",Data!$H146) ->  | BT44: =IF(Data!$G177="","",Data!$G177) ->  | BY44: =IF(Data!$H177="","",Data!$H177) ->  | CH44: =IF(Data!$G208="","",Data!$G208) ->  | CM44: =IF(Data!$H208="","",Data!$H208) -> 
B45: =Data!$G23 -> 490 | G45: =Data!$H23 -> 21.2507 | P45: =Data!$G54 -> 645 | U45: =Data!$H54 -> 33.35411 | AD45: =IF(Data!$G85="","",Data!$G85) ->  | AI45: =IF(Data!$H85="","",Data!$H85) ->  | AR45: =IF(Data!$G116="","",Data!$G116) ->  | AW45: =IF(Data!$H116="","",Data!$H116) ->  | BF45: =IF(Data!$G147="","",Data!$G147) ->  | BK45: =IF(Data!$H147="","",Data!$H147) ->  | BT45: =IF(Data!$G178="","",Data!$G178) ->  | BY45: =IF(Data!$H178="","",Data!$H178) ->  | CH45: =IF(Data!$G209="","",Data!$G209) ->  | CM45: =IF(Data!$H209="","",Data!$H209) -> 
B46: =Data!$G24 -> 495 | G46: =Data!$H24 -> 24.3909 | P46: =Data!$G55 -> 650 | U46: =Data!$H55 -> 30.46853 | AD46: =IF(Data!$G86="","",Data!$G86) ->  | AI46: =IF(Data!$H86="","",Data!$H86) ->  | AR46: =IF(Data!$G117="","",Data!$G117) ->  | AW46: =IF(Data!$H117="","",Data!$H117) ->  | BF46: =IF(Data!$G148="","",Data!$G148) ->  | BK46: =IF(Data!$H148="","",Data!$H148) ->  | BT46: =IF(Data!$G179="","",Data!$G179) ->  | BY46: =IF(Data!$H179="","",Data!$H179) ->  | CH46: =IF(Data!$G210="","",Data!$G210) ->  | CM46: =IF(Data!$H210="","",Data!$H210) -> 
B47: =Data!$G25 -> 500 | G47: =Data!$H25 -> 27.90953 | P47: =Data!$G56 -> 655 | U47: =Data!$H56 -> 27.64569 | AD47: =IF(Data!$G87="","",Data!$G87) ->  | AI47: =IF(Data!$H87="","",Data!$H87) ->  | AR47: =IF(Data!$G118="","",Data!$G118) ->  | AW47: =IF(Data!$H118="","",Data!$H118) ->  | BF47: =IF(Data!$G149="","",Data!$G149) ->  | BK47: =IF(Data!$H149="","",Data!$H149) ->  | BT47: =IF(Data!$G180="","",Data!$G180) ->  | BY47: =IF(Data!$H180="","",Data!$H180) ->  | CH47: =IF(Data!$G211="","",Data!$G211) ->  | CM47: =IF(Data!$H211="","",Data!$H211) -> 
B48: =Data!$G26 -> 505 | G48: =Data!$H26 -> 31.27134 | P48: =Data!$G57 -> 660 | U48: =Data!$H57 -> 25.30733 | AD48: =IF(Data!$G88="","",Data!$G88) ->  | AI48: =IF(Data!$H88="","",Data!$H88) ->  | AR48: =IF(Data!$G119="","",Data!$G119) ->  | AW48: =IF(Data!$H119="","",Data!$H119) ->  | BF48: =IF(Data!$G150="","",Data!$G150) ->  | BK48: =IF(Data!$H150="","",Data!$H150) ->  | BT48: =IF(Data!$G181="","",Data!$G181) ->  | BY48: =IF(Data!$H181="","",Data!$H181) ->  | CH48: =IF(Data!$G212="","",Data!$G212) ->  | CM48: =IF(Data!$H212="","",Data!$H212) -> 
B49: =Data!$G27 -> 510 | G49: =Data!$H27 -> 33.84137 | P49: =Data!$G58 -> 665 | U49: =Data!$H58 -> 23.26774 | AD49: =IF(Data!$G89="","",Data!$G89) ->  | AI49: =IF(Data!$H89="","",Data!$H89) ->  | AR49: =IF(Data!$G120="","",Data!$G120) ->  | AW49: =IF(Data!$H120="","",Data!$H120) ->  | BF49: =IF(Data!$G151="","",Data!$G151) ->  | BK49: =IF(Data!$H151="","",Data!$H151) ->  | BT49: =IF(Data!$G182="","",Data!$G182) ->  | BY49: =IF(Data!$H182="","",Data!$H182) ->  | CH49: =IF(Data!$G213="","",Data!$G213) ->  | CM49: =IF(Data!$H213="","",Data!$H213) -> 
B50: =Data!$G28 -> 515 | G50: =Data!$H28 -> 35.92001 | P50: =Data!$G59 -> 670 | U50: =Data!$H59 -> 21.50805 | AD50: =IF(Data!$G90="","",Data!$G90) ->  | AI50: =IF(Data!$H90="","",Data!$H90) ->  | AR50: =IF(Data!$G121="","",Data!$G121) ->  | AW50: =IF(Data!$H121="","",Data!$H121) ->  | BF50: =IF(Data!$G152="","",Data!$G152) ->  | BK50: =IF(Data!$H152="","",Data!$H152) ->  | BT50: =IF(Data!$G183="","",Data!$G183) ->  | BY50: =IF(Data!$H183="","",Data!$H183) ->  | CH50: =IF(Data!$G214="","",Data!$G214) ->  | CM50: =IF(Data!$H214="","",Data!$H214) -> 
B51: =Data!$G29 -> 520 | G51: =Data!$H29 -> 37.57893 | P51: =Data!$G60 -> 675 | U51: =Data!$H60 -> 19.6887 | AD51: =IF(Data!$G91="","",Data!$G91) ->  | AI51: =IF(Data!$H91="","",Data!$H91) ->  | AR51: =IF(Data!$G122="","",Data!$G122) ->  | AW51: =IF(Data!$H122="","",Data!$H122) ->  | BF51: =IF(Data!$G153="","",Data!$G153) ->  | BK51: =IF(Data!$H153="","",Data!$H153) ->  | BT51: =IF(Data!$G184="","",Data!$G184) ->  | BY51: =IF(Data!$H184="","",Data!$H184) ->  | CH51: =IF(Data!$G215="","",Data!$G215) ->  | CM51: =IF(Data!$H215="","",Data!$H215) -> 
B52: =Data!$G30 -> 525 | G52: =Data!$H30 -> 38.95928 | P52: =Data!$G61 -> 680 | U52: =Data!$H61 -> 17.91291 | AD52: =IF(Data!$G92="","",Data!$G92) ->  | AI52: =IF(Data!$H92="","",Data!$H92) ->  | AR52: =IF(Data!$G123="","",Data!$G123) ->  | AW52: =IF(Data!$H123="","",Data!$H123) ->  | BF52: =IF(Data!$G154="","",Data!$G154) ->  | BK52: =IF(Data!$H154="","",Data!$H154) ->  | BT52: =IF(Data!$G185="","",Data!$G185) ->  | BY52: =IF(Data!$H185="","",Data!$H185) ->  | CH52: =IF(Data!$G216="","",Data!$G216) ->  | CM52: =IF(Data!$H216="","",Data!$H216) -> 
B53: =Data!$G31 -> 530 | G53: =Data!$H31 -> 40.10447 | P53: =Data!$G62 -> 685 | U53: =Data!$H62 -> 16.05528 | AD53: =IF(Data!$G93="","",Data!$G93) ->  | AI53: =IF(Data!$H93="","",Data!$H93) ->  | AR53: =IF(Data!$G124="","",Data!$G124) ->  | AW53: =IF(Data!$H124="","",Data!$H124) ->  | BF53: =IF(Data!$G155="","",Data!$G155) ->  | BK53: =IF(Data!$H155="","",Data!$H155) ->  | BT53: =IF(Data!$G186="","",Data!$G186) ->  | BY53: =IF(Data!$H186="","",Data!$H186) ->  | CH53: =IF(Data!$G217="","",Data!$G217) ->  | CM53: =IF(Data!$H217="","",Data!$H217) -> 
A64: ='Protocol 1 (5nm)'!A54:AA54 -> Company
A65: ='Protocol 1 (5nm)'!A55:AA55 -> Address
A66: ='Protocol 1 (5nm)'!A56:AA56 -> ZIP City
A68: ='Protocol 1 (5nm)'!A58:O58 -> Test location, | P68: ='Protocol 1 (5nm)'!P58:AA58 -> Date | BL68: ='Protocol 1 (5nm)'!BL58:CF58 -> First, last name of inspector | CG68: ='Protocol 1 (5nm)'!CG58:CX58 -> Phone number

Sheet Protocol 3
A1: =IF(Data!$AE$2="DE","Messprotokoll",IF(Data!$AE$2="UK","Measurement protocol",IF(Data!$AE$2="FR","Rapport de mesure","Language Error"))) -> Measurement protocol
A4: =IF(Data!$AE$2 = "DE", "Prüfling:", IF(Data!$AE$2 = "UK","Test object:",IF(Data!$AE$2="FR","Objet testé:","Language Error"))) -> Test object: | N4: ='Protocol 1 (5nm)'!N4:BG4 -> Manufacturer | BK4: =IF(Data!$AE$2="DE","Messdatei:",IF(Data!$AE$2="UK","Measurement file:",IF(Data!$AE$2="FR","Fichier de mesure:","Language Error"))) -> Measurement file: | CG4: =Data!Q18 -> M_000003.CSV
N5: ='Protocol 1 (5nm)'!N5:BG5 -> Type | BK5: =IF(Data!$AE$2="DE","Datum der Messung:",IF(Data!$AE$2="UK","Date of measurement:",IF(Data!$AE$2="FR","Date de mesure:","Language Error"))) -> Date of measurement: | CG5: =Data!Q23 -> 29.04.2024
N6: ='Protocol 1 (5nm)'!N6:BG6 -> Model | BK6: =IF(Data!$AE$2="DE","Uhrzeit der Messung:",IF(Data!$AE$2="UK","Time of measurement:",IF(Data!$AE$2="FR","Heure de mesure:","Language Error"))) -> Time of measurement: | CG6: =Data!Q21 -> 08:07:17
A60: ='Protocol 1 (5nm)'!A54:AA54 -> Company
A61: ='Protocol 1 (5nm)'!A55:AA55 -> Address
A62: ='Protocol 1 (5nm)'!A56:AA56 -> ZIP City
A64: ='Protocol 1 (5nm)'!A58:O58 -> Test location, | P64: ='Protocol 1 (5nm)'!P58:AA58 -> Date | BL64: ='Protocol 1 (5nm)'!BL58:CF58 -> First, last name of inspector | CG64: ='Protocol 1 (5nm)'!CG58:CX58 -> Phone number

Sheet Protocol TM30-20
A1: =IF(Data!$AE$2="DE","Messprotokoll",IF(Data!$AE$2="UK","Measurement protocol",IF(Data!$AE$2="FR","Rapport de mesure","Language Error"))) -> Measurement protocol
A4: =IF(Data!$AE$2 = "DE", "Prüfling:", IF(Data!$AE$2 = "UK","Test object:",IF(Data!$AE$2="FR","Objet testé:","Language Error"))) -> Test object: | N4: ='Protocol 1 (5nm)'!N4:BG4 -> Manufacturer | BK4: =IF(Data!$AE$2="DE","Messdatei:",IF(Data!$AE$2="UK","Measurement file:",IF(Data!$AE$2="FR","Fichier de mesure:","Language Error"))) -> Measurement file: | CG4: =Data!Q18 -> M_000003.CSV
N5: ='Protocol 1 (5nm)'!N5:BG5 -> Type | BK5: =IF(Data!$AE$2="DE","Datum der Messung:",IF(Data!$AE$2="UK","Date of measurement:",IF(Data!$AE$2="FR","Date de mesure:","Language Error"))) -> Date of measurement: | CG5: =Data!Q23 -> 29.04.2024
N6: ='Protocol 1 (5nm)'!N6:BG6 -> Model | BK6: =IF(Data!$AE$2="DE","Uhrzeit der Messung:",IF(Data!$AE$2="UK","Time of measurement:",IF(Data!$AE$2="FR","Heure de mesure:","Language Error"))) -> Time of measurement: | CG6: =Data!Q21 -> 08:07:17
A54: ='Protocol 1 (5nm)'!A54:AA54 -> Company
A55: ='Protocol 1 (5nm)'!A55:AA55 -> Address
A56: ='Protocol 1 (5nm)'!A56:AA56 -> ZIP City
A58: ='Protocol 1 (5nm)'!A58:O58 -> Test location, | P58: ='Protocol 1 (5nm)'!P58:AA58 -> Date | BL58: ='Protocol 1 (5nm)'!BL58:CF58 -> First, last name of inspector | CG58: ='Protocol 1 (5nm)'!CG58:CX58 -> Phone number

Sheet Protocol Flicker
A1: =IF(Data!$AE$2="DE","Messprotokoll",IF(Data!$AE$2="UK","Measurement protocol",IF(Data!$AE$2="FR","Rapport de mesure","Language Error"))) -> Measurement protocol
A4: =IF(Data!$AE$2 = "DE", "Prüfling:", IF(Data!$AE$2 = "UK","Test object:",IF(Data!$AE$2="FR","Objet testé:","Language Error"))) -> Test object: | N4: ='Protocol 1 (5nm)'!N4:BG4 -> Manufacturer | BK4: =IF(Data!$AE$2="DE","Messdatei:",IF(Data!$AE$2="UK","Measurement file:",IF(Data!$AE$2="FR","Fichier de mesure:","Language Error"))) -> Measurement file: | CG4: =Data!Q18 -> M_000003.CSV
N5: ='Protocol 1 (5nm)'!N5:BG5 -> Type | BK5: =IF(Data!$AE$2="DE","Datum der Messung:",IF(Data!$AE$2="UK","Date of measurement:",IF(Data!$AE$2="FR","Date de mesure:","Language Error"))) -> Date of measurement: | CG5: =Data!Q23 -> 29.04.2024
N6: ='Protocol 1 (5nm)'!N6:BG6 -> Model | BK6: =IF(Data!$AE$2="DE","Uhrzeit der Messung:",IF(Data!$AE$2="UK","Time of measurement:",IF(Data!$AE$2="FR","Heure de mesure:","Language Error"))) -> Time of measurement: | CG6: =Data!Q21 -> 08:07:17
D23: =IF(Data!$AE$2 = "DE", "Flickerfrequenz", IF(Data!$AE$2 = "UK","Flicker frequency",IF(Data!$AE$2="FR","Fréquence flicker","Language Error"))) -> Flicker frequency | AI23: =Data!K36 -> 99.9
D24: =IF(Data!$AE$2 = "DE", "Prozent Flicker", IF(Data!$AE$2 = "UK","Percent Flicker",IF(Data!$AE$2="FR","% flicker","Language Error"))) -> Percent Flicker | AI24: =Data!K37 -> 17.2
D25: =IF(Data!$AE$2 = "DE", "Flickerindex", IF(Data!$AE$2 = "UK","Flicker index",IF(Data!$AE$2="FR","Index flicker","Language Error"))) -> Flicker index | AI25: =Data!K35 -> 0.051
A54: ='Protocol 1 (5nm)'!A54:AA54 -> Company
A55: ='Protocol 1 (5nm)'!A55:AA55 -> Address
A56: ='Protocol 1 (5nm)'!A56:AA56 -> ZIP City
A58: ='Protocol 1 (5nm)'!A58:O58 -> Test location, | P58: ='Protocol 1 (5nm)'!P58:AA58 -> Date | BL58: ='Protocol 1 (5nm)'!BL58:CF58 -> First, last name of inspector | CG58: ='Protocol 1 (5nm)'!CG58:CX58 -> Phone number

Sheet Protocol TLCI
A1: =IF(Data!$AE$2="DE","Messprotokoll",IF(Data!$AE$2="UK","Measurement protocol",IF(Data!$AE$2="FR","Rapport de mesure","Language Error"))) -> Measurement protocol
A4: =IF(Data!$AE$2 = "DE", "Prüfling:", IF(Data!$AE$2 = "UK","Test object:",IF(Data!$AE$2="FR","Objet testé:","Language Error"))) -> Test object: | N4: ='Protocol 1 (5nm)'!N4:BG4 -> Manufacturer | BK4: =IF(Data!$AE$2="DE","Messdatei:",IF(Data!$AE$2="UK","Measurement file:",IF(Data!$AE$2="FR","Fichier de mesure:","Language Error"))) -> Measurement file: | CG4: =Data!Q18 -> M_000003.CSV
N5: ='Protocol 1 (5nm)'!N5:BG5 -> Type | BK5: =IF(Data!$AE$2="DE","Datum der Messung:",IF(Data!$AE$2="UK","Date of measurement:",IF(Data!$AE$2="FR","Date de mesure:","Language Error"))) -> Date of measurement: | CG5: =Data!Q23 -> 29.04.2024
N6: ='Protocol 1 (5nm)'!N6:BG6 -> Model | BK6: =IF(Data!$AE$2="DE","Uhrzeit der Messung:",IF(Data!$AE$2="UK","Time of measurement:",IF(Data!$AE$2="FR","Heure de mesure:","Language Error"))) -> Time of measurement: | CG6: =Data!Q21 -> 08:07:17
D23: =IF(Data!$AE$2 = "DE", "Ähnlichste Farbtemperatur (CCT)", IF(Data!$AE$2 = "UK","correlated color temperature (CCT)",IF(Data!$AE$2="FR","Temp. de couleur proximale (CCT)","Language Error"))) -> correlated color temperature (CCT) | AI23: =Data!K30 -> 4014 | BC23: =IF(Data!$AE$2 = "DE", "Referenzspektrum", IF(Data!$AE$2 = "UK","Referencec Spectrum",IF(Data!$AE$2="FR","Spectre de référence","Language Error"))) -> Referencec Spectrum | BY23: =Data!Q31 -> Plank-Daylight Mix
D24: TLCI | AI24: =Data!Q30 -> 75
I26: Lightness | S26: Chroma | AC26: Hue
D27: R | I27: =Data!Q50 -> 3 | S27: =Data!Q51 -> 2 | AC27: =Data!Q52 -> 0
D28: R/Y | I28: =Data!Q53 -> 0 | S28: =Data!Q54 -> 1 | AC28: =Data!Q55 -> -2
D29: Y | I29: =Data!Q56 -> 0 | S29: =Data!Q57 -> 0 | AC29: =Data!Q58 -> -2
D30: Y/G | I30: =Data!Q59 -> 0 | S30: =Data!Q60 -> 0 | AC30: =Data!Q61 -> 0
D31: G | I31: =Data!Q62 -> 0 | S31: =Data!Q63 -> 0 | AC31: =Data!Q64 -> 1
D32: G/C | I32: =Data!Q65 -> 0 | S32: =Data!Q66 -> 0 | AC32: =Data!Q67 -> 1
D33: C | I33: =Data!Q68 -> 0 | S33: =Data!Q69 -> 0 | AC33: =Data!Q70 -> 1
D34: C/B | I34: =Data!Q71 -> 1 | S34: =Data!Q72 -> 0 | AC34: =Data!Q73 -> -2
D35: B | I35: =Data!Q74 -> 0 | S35: =Data!Q75 -> -1 | AC35: =Data!Q76 -> -1
D36: B/M | I36: =Data!Q77 -> 1 | S36: =Data!Q78 -> 0 | AC36: =Data!Q79 -> 3
D37: M | I37: =Data!Q80 -> 1 | S37: =Data!Q81 -> 0 | AC37: =Data!Q82 -> 3
D38: M/R | I38: =Data!Q83 -> 4 | S38: =Data!Q84 -> 1 | AC38: =Data!Q85 -> 4
D44: =IF(Data!$AE$2 = "DE", "Testfarbe", IF(Data!$AE$2 = "UK","Test Colour",IF(Data!$AE$2="FR","Couleur de test","Language Error"))) -> Test Colour | X44: =IF(Data!$AE$2 = "DE", "Wert", IF(Data!$AE$2 = "UK","Value",IF(Data!$AE$2="FR","Valeur","Language Error"))) -> Value | AF44: =IF(Data!$AE$2 = "DE", "Testfarbe", IF(Data!$AE$2 = "UK","Test Colour",IF(Data!$AE$2="FR","Couleur de test","Language Error"))) -> Test Colour | AZ44: =IF(Data!$AE$2 = "DE", "Wert", IF(Data!$AE$2 = "UK","Value",IF(Data!$AE$2="FR","Valeur","Language Error"))) -> Value | BH44: =IF(Data!$AE$2 = "DE", "Testfarbe", IF(Data!$AE$2 = "UK","Test Colour",IF(Data!$AE$2="FR","Couleur de test","Language Error"))) -> Test Colour | CB44: =IF(Data!$AE$2 = "DE", "Wert", IF(Data!$AE$2 = "UK","Value",IF(Data!$AE$2="FR","Valeur","Language Error"))) -> Value
D45: Q1 | I45: Dark skin | X45: =Data!Q32 -> 80 | AF45: Q7 | AK45: Orange | AZ45: =Data!Q38 -> 95 | BH45: Q13 | BM45: Blue | CB45: =Data!Q44 -> 83
D46: Q2 | I46: Light skin | V46: =Data!Q33 -> 86 | X46: =Data!Q33 -> 86 | AF46: Q8 | AK46: Purplish blue | AZ46: =Data!Q39 -> 86 | BH46: Q14 | BM46: Green | CB46: =Data!Q45 -> 92
D47: Q3 | I47: Blue sky | V47: =Data!Q34 -> 86 | X47: =Data!Q34 -> 86 | AF47: Q9 | AK47: Moderate red | AZ47: =Data!Q40 -> 96 | BH47: Q15 | BM47: Red | CB47: =Data!Q46 -> 93
D48: Q4 | I48: Foliage | V48: =Data!Q35 -> 89 | X48: =Data!Q35 -> 89 | AF48: Q10 | AK48: Purple | AZ48: =Data!Q41 -> 85 | BH48: Q16 | BM48: Yellow | CB48: =Data!Q47 -> 50
D49: Q5 | I49: Blue flower | V49: =Data!Q36 -> 99 | X49: =Data!Q36 -> 99 | AF49: Q11 | AK49: Yellow green | AZ49: =Data!Q42 -> 58 | BH49: Q17 | BM49: Magenta | CB49: =Data!Q48 -> 93
D50: Q6 | I50: Bluish green | V50: =Data!Q37 -> 76 | X50: =Data!Q37 -> 76 | AF50: Q12 | AK50: Orange yellow | AZ50: =Data!Q43 -> 96 | BH50: Q18 | BM50: Cyan | CB50: =Data!Q49 -> 51
A54: ='Protocol 1 (5nm)'!A54:AA54 -> Company
A55: ='Protocol 1 (5nm)'!A55:AA55 -> Address
A56: ='Protocol 1 (5nm)'!A56:AA56 -> ZIP City
A58: ='Protocol 1 (5nm)'!A58:O58 -> Test location, | P58: ='Protocol 1 (5nm)'!P58:AA58 -> Date | BL58: ='Protocol 1 (5nm)'!BL58:CF58 -> First, last name of inspector | CG58: ='Protocol 1 (5nm)'!CG58:CX58 -> Phone number

Sheet Protocol PPFD
A1: =IF(Data!$AE$2="DE","Messprotokoll",IF(Data!$AE$2="UK","Measurement protocol",IF(Data!$AE$2="FR","Rapport de mesure","Language Error"))) -> Measurement protocol
A4: =IF(Data!$AE$2 = "DE", "Prüfling:", IF(Data!$AE$2 = "UK","Test object:",IF(Data!$AE$2="FR","Objet testé:","Language Error"))) -> Test object: | N4: ='Protocol 1 (5nm)'!N4:BG4 -> Manufacturer | BK4: =IF(Data!$AE$2="DE","Messdatei:",IF(Data!$AE$2="UK","Measurement file:",IF(Data!$AE$2="FR","Fichier de mesure:","Language Error"))) -> Measurement file: | CG4: =Data!Q18 -> M_000003.CSV
N5: ='Protocol 1 (5nm)'!N5:BG5 -> Type | BK5: =IF(Data!$AE$2="DE","Datum der Messung:",IF(Data!$AE$2="UK","Date of measurement:",IF(Data!$AE$2="FR","Date de mesure:","Language Error"))) -> Date of measurement: | CG5: =Data!Q23 -> 29.04.2024
N6: ='Protocol 1 (5nm)'!N6:BG6 -> Model | BK6: =IF(Data!$AE$2="DE","Uhrzeit der Messung:",IF(Data!$AE$2="UK","Time of measurement:",IF(Data!$AE$2="FR","Heure de mesure:","Language Error"))) -> Time of measurement: | CG6: =Data!Q21 -> 08:07:17
D23: =IF(Data!$AE$2="DE","Beleuchtungsstärke",IF(Data!$AE$2="UK","Illuminance",IF(Data!$AE$2="FR","Illuminance","Language Error"))) -> Illuminance | AI23: =Data!K33 -> 3202.16
D24: PPFD | AI24: =Data!K158 & " µmol/m²s" -> 45,52 µmol/m²s
D25: PPFD UV | AI25: =Data!K159 & " µmol/m²s" -> 0,07 µmol/m²s
D26: =IF(Data!$AE$2="DE","PPFD Blau",IF(Data!$AE$2="UK","PPFD Blue",IF(Data!$AE$2="FR","PPFD Bleu","Language Error"))) -> PPFD Blue | AI26: =Data!K161 & " µmol/m²s" -> 7,94 µmol/m²s
D27: =IF(Data!$AE$2="DE","PPFD Grün",IF(Data!$AE$2="UK","PPFD Green",IF(Data!$AE$2="FR","PPFD Vert","Language Error"))) -> PPFD Green | AI27: =Data!K163 & " µmol/m²s" -> 20,51 µmol/m²s
D28: =IF(Data!$AE$2="DE","PPFD Rot",IF(Data!$AE$2="UK","PPFD Red",IF(Data!$AE$2="FR","PPFD Rouge","Language Error"))) -> PPFD Red | AI28: =Data!K165 & " µmol/m²s" -> 17,07 µmol/m²s
D29: PPFD FR | AI29: =Data!K166 & " µmol/m²s" -> 5,15 µmol/m²s
D31: % PPFD UV | AI31: =Data!K159/Data!K158 -> 0.001537785589
D32: =IF(Data!$AE$2="DE","% PPFD Blau",IF(Data!$AE$2="UK","% PPFD Blue",IF(Data!$AE$2="FR","% PPFD Bleu","Language Error"))) -> % PPFD Blue | AI32: =Data!K161/Data!K158 -> 0.1744288225
D33: =IF(Data!$AE$2="DE","% PPFD Grün",IF(Data!$AE$2="UK","% PPFD Green",IF(Data!$AE$2="FR","% PPFD Vert","Language Error"))) -> % PPFD Green | AI33: =Data!K163/Data!K158 -> 0.4505711775
D34: =IF(Data!$AE$2="DE","% PPFD Rot",IF(Data!$AE$2="UK","% PPFD Red",IF(Data!$AE$2="FR","% PPFD Rouge","Language Error"))) -> % PPFD Red | AI34: =Data!K165/Data!K158 -> 0.375
D35: % PPFD FR | AI35: =Data!K166/Data!K158 -> 0.1131370826
A52: ='Protocol 1 (5nm)'!A54:AA54 -> Company
A53: ='Protocol 1 (5nm)'!A55:AA55 -> Address
A54: ='Protocol 1 (5nm)'!A56:AA56 -> ZIP City
A56: ='Protocol 1 (5nm)'!A58:O58 -> Test location, | P56: ='Protocol 1 (5nm)'!P58:AA58 -> Date | BL56: ='Protocol 1 (5nm)'!BL58:CF58 -> First, last name of inspector | CG56: ='Protocol 1 (5nm)'!CG58:CX58 -> Phone number

Sheet Reference Comparison
A1: =IF(Data!$AE$2="DE","Messprotokoll",IF(Data!$AE$2="UK","Measurement protocol",IF(Data!$AE$2="FR","Rapport de mesure","Language Error"))) -> Measurement protocol
A4: =IF(Data!$AE$2 = "DE", "Prüfling:", IF(Data!$AE$2 = "UK","Test object:",IF(Data!$AE$2="FR","Objet testé:","Language Error"))) -> Test object: | N4: ='Protocol 1 (5nm)'!N4:BG4 -> Manufacturer | BK4: =IF(Data!$AE$2="DE","Messdatei:",IF(Data!$AE$2="UK","Measurement file:",IF(Data!$AE$2="FR","Fichier de mesure:","Language Error"))) -> Measurement file: | CG4: =Data!Q18 -> M_000003.CSV
N5: ='Protocol 1 (5nm)'!N5:BG5 -> Type | BK5: =IF(Data!$AE$2="DE","Datum der Messung:",IF(Data!$AE$2="UK","Date of measurement:",IF(Data!$AE$2="FR","Date de mesure:","Language Error"))) -> Date of measurement: | CG5: =Data!Q23 -> 29.04.2024
N6: ='Protocol 1 (5nm)'!N6:BG6 -> Model | BK6: =IF(Data!$AE$2="DE","Uhrzeit der Messung:",IF(Data!$AE$2="UK","Time of measurement:",IF(Data!$AE$2="FR","Heure de mesure:","Language Error"))) -> Time of measurement: | CG6: =Data!Q21 -> 08:07:17
BK7: =IF(Data!$AE$2="DE","Referenzdatei:",IF(Data!$AE$2="UK","Reference file:",IF(Data!$AE$2="FR","Fichier de référence:","Language Error"))) -> Reference file: | CG7: =Data!AC18 -> M_000004.CSV
BK8: =IF(Data!$AE$2="DE","Datum der Messung:",IF(Data!$AE$2="UK","Date of measurement:",IF(Data!$AE$2="FR","Date de mesure:","Language Error"))) -> Date of measurement: | CG8: =Data!AC23 -> 29.04.2024
BK9: =IF(Data!$AE$2="DE","Uhrzeit der Messung:",IF(Data!$AE$2="UK","Time of measurement:",IF(Data!$AE$2="FR","Heure de mesure:","Language Error"))) -> Time of measurement: | CG9: =Data!AC21 -> 08:18:37
G25: =Data!$AB$18 -> reference | Q25: =Data!$P$18 -> measurement | AD25: Δ | BO25: =Data!$AB$18 -> reference | CA25: =Data!$P$18 -> measurement | CN25: Δ
B26: Ra | G26: =Data!W1 -> 97.6 | Q26: =Data!K1 -> 84.72 | AD26: =Q26-G26 -> -12.88 | AK26: =IF(Data!$AE$2="DE","Beleuchtungsstärke",IF(Data!$AE$2="UK","Illuminance",IF(Data!$AE$2="FR","Illuminance","Language Error"))) -> Illuminance | BO26: =Data!W33 -> 2469.94 | CA26: =Data!K33 -> 3202.16 | CN26: =CA26-BO26 -> 732.22
B27: R1 | G27: =Data!W2 -> 97.11 | Q27: =Data!K2 -> 82.78 | AD27: =Q27-G27 -> -14.33 | AK27: Ee | BO27: =Data!AC25 -> 11.76 | CA27: =Data!Q25 -> 10.564 | CN27: =CA27-BO27 -> -1.196
B28: R2 | G28: =Data!W3 -> 98.31 | Q28: =Data!K3 -> 90.11 | AD28: -8.2 | AK28: LER | BO28: =Data!AC26 -> 210 | CA28: =Data!Q26 -> 303.1 | CN28: =CA28-BO28 -> 93.1
B29: R3 | G29: =Data!W4 -> 98.94 | Q29: =Data!K4 -> 95.97 | AD29: -2.97
B30: R4 | G30: =Data!W5 -> 96.5 | Q30: =Data!K5 -> 83.5 | AD30: -13 | AK30: =IF(Data!$AE$2 = "DE", "Ähnlichste Farbtemperatur (CCT)", IF(Data!$AE$2 = "UK","correlated color temperature (CCT)",IF(Data!$AE$2="FR","temp. de couleur proximale (CCT)","Language Error"))) -> correlated color temperature (CCT) | BO30: =Data!W30 -> 5126 | CA30: =Data!K30 -> 4014 | CN30: =CA30-BO30 -> -1112
B31: R5 | G31: =Data!W6 -> 97.12 | Q31: =Data!K6 -> 82.71 | AD31: -14.41 | AK31: Duv | BO31: =Data!W31 -> 0.007 | CA31: =Data!K31 -> 0.003 | CN31: =CA31-BO31 -> -0.004
B32: R6 | G32: =Data!W7 -> 98.12 | Q32: =Data!K7 -> 86.5 | AD32: -11.62
B33: R7 | G33: =Data!W8 -> 98.39 | Q33: =Data!K8 -> 88.13 | AD33: -10.26 | AK33: =IF(Data!$AE$2 = "DE", "Farbreinheit",IF(Data!$AE$2 = "UK","Saturation",IF(Data!$AE$2="FR","Saturation","Language Error"))) -> Saturation | BO33: =Data!W39/100 -> 0.12 | CA33: =Data!K39/100 -> 0.299 | CN33: =CA33-BO33 -> 0.179
B34: R8 | G34: =Data!W9 -> 96.29 | Q34: =Data!K9 -> 68.09 | AD34: -28.2
B35: R9 | G35: =Data!W10 -> 90.19 | Q35: =Data!K10 -> 17.21 | AD35: -72.98 | AK35: =IF(Data!$AE$2 = "DE", "Dominante Wellenlänge", IF(Data!$AE$2 = "UK", "Dominant wavelength",IF(Data!$AE$2="FR","Longueur d'onde dominante (λD)","Language Error"))) -> Dominant wavelength | BO35: =Data!W40 -> 565 | CA35: =Data!K40 -> 577 | CN35: =CA35-BO35 -> 12
B36: R10 | G36: =Data!W11 -> 97.04 | Q36: =Data!K11 -> 76.65 | AD36: -20.39 | AK36: =IF(Data!$AE$2 = "DE", "Peak-Wellenlänge",IF(Data!$AE$2 = "UK", "Peak wavelength",IF(Data!$AE$2="FR","Pic courbe spectrale (λP)","Language Error"))) -> Peak wavelength | BO36: =Data!W20 -> 535 | CA36: =Data!K20 -> 595 | CN36: =CA36-BO36 -> 60
B37: R11 | G37: =Data!W12 -> 96.22 | Q37: =Data!K12 -> 82.47 | AD37: -13.75
B38: R12 | G38: =Data!W13 -> 96.12 | Q38: =Data!K13 -> 64.47 | AD38: -31.65 | AK38: TM30 Rf | BO38: =Data!W43 -> 97.7 | CA38: =Data!K43 -> 86.1 | CN38: =CA38-BO38 -> -11.6
B39: R13 | G39: =Data!W14 -> 97.25 | Q39: =Data!K14 -> 84.59 | AD39: -12.66 | AK39: TM30 Rg | BO39: =Data!W44 -> 98.2 | CA39: =Data!K44 -> 95.2 | CN39: =CA39-BO39 -> -3
B40: R14 | G40: =Data!W15 -> 99.22 | Q40: =Data!K15 -> 97.9 | AD40: -1.32
B41: R15 | G41: =Data!W16 -> 95.84 | Q41: =Data!K16 -> 76.53 | AD41: -19.31 | AK41: PPFD [µmol/m²s] | BO41: =Data!W158 -> 42.63 | CA41: =Data!K158 -> 45.52 | CN41: =CA41-BO41 -> 2.89
AK42: PPFD UV [µmol/m²s] | BO42: =Data!W159 -> 0.46 | CA42: =Data!K159 -> 0.07 | CN42: -0.39
B43: Re | G43: =Data!AC27 -> 96.84 | Q43: =Data!Q27 -> 78.51 | AD43: =Q43-G43 -> -18.33 | AK43: =IF(Data!$AE$2 = "DE", "PPFD Blau",IF(Data!$AE$2 = "UK","PPFD Blue",IF(Data!$AE$2="FR","PPFD Bleu","Language Error"))) & " [µmol/m²s]" -> PPFD Blue [µmol/m²s] | BO43: =Data!W161 -> 9.9 | CA43: =Data!K161 -> 7.94 | CN43: -1.96
B44: GAI | G44: =Data!AC28 -> 84.82 | Q44: =Data!Q28 -> 70.46 | AD44: =Q44-G44 -> -14.36 | AK44: =IF(Data!$AE$2 = "DE", "PPFD Grün",IF(Data!$AE$2 = "UK","PPFD Green",IF(Data!$AE$2="FR","PPFD Vert","Language Error"))) & " [µmol/m²s]" -> PPFD Green [µmol/m²s] | BO44: =Data!W163 -> 15.67 | CA44: =Data!K163 -> 20.51 | CN44: 4.84
AK45: =IF(Data!$AE$2 = "DE", "PPFD Rot",IF(Data!$AE$2 = "UK","PPFD Red",IF(Data!$AE$2="FR","PPFD Rouge","Language Error"))) & " [µmol/m²s]" -> PPFD Red [µmol/m²s] | BO45: =Data!W165 -> 17.06 | CA45: =Data!K165 -> 17.07 | CN45: 0.01
B46: TLCI | G46: =Data!AC30 -> 100 | Q46: =Data!Q30 -> 75 | AD46: =Q46-G46 -> -25 | AK46: PPFD FR [µmol/m²s] | BO46: =Data!W166 -> 14.76 | CA46: =Data!K166 -> 5.15 | CN46: -9.61
A51: ='Protocol 1 (5nm)'!A54:AA54 -> Company
A52: ='Protocol 1 (5nm)'!A55:AA55 -> Address
A53: ='Protocol 1 (5nm)'!A56:AA56 -> ZIP City
A55: ='Protocol 1 (5nm)'!A58:O58 -> Test location, | P55: ='Protocol 1 (5nm)'!P58:AA58 -> Date | BL55: ='Protocol 1 (5nm)'!BL58:CF58 -> First, last name of inspector | CG55: ='Protocol 1 (5nm)'!CG58:CX58 -> Phone number

Sheet Data
A1: Seriennummer | B1: 21C10666 | C1: Seriennummer | D1: 21C10666 | F1: 1 | G1: =IF(INDEX($A$1:$A$500,MATCH("Spe*",$A$1:$A$500,0)+F1)=0,"",INDEX($A$1:$A$500,MATCH("Spe*",$A$1:$A$500,0)+F1)) -> 380 | H1: =IF(INDEX($A$1:$A$500,MATCH("Spe*",$A$1:$A$500,0)+F1)=0,"",INDEX($B$1:$B$500,MATCH("Spe*",$A$1:$A$500,0)+F1)) -> 0.68384 | I1: CRI | J1: Ra | K1: =IF(ISNA(MATCH(I1,$A$1:$A$300,0)),IF($A$1="",NA(),INDEX($B$1:$B$300,MATCH(J1,$A$1:$A$300,0))),IF($A$1="",NA(),INDEX($B$1:$B$300,MATCH(I1,$A$1:$A$300,0)))) -> 84.72 | L1: =IF(K1="",NA(),IF(K1 < 0, 0, K1)) -> 84.72 | M1: =IF(G1="",NA(),ROUND(G1,0)) -> 380 | N1: =IF(H1="",NA(),H1) -> 0.68384 | P1: R15 | Q1: =IF($A$1="",NA(),INDEX($B$1:$B$300,MATCH(P1,$A$1:$A$300,0))) -> 76.53 | R1: 1 | S1: =IF(INDEX($C$1:$C$500,MATCH("Spe*",$C$1:$C$500,0)+R1)=0,"",INDEX($C$1:$C$500,MATCH("Spe*",$C$1:$C$500,0)+R1)) -> 380 | T1: =IF(INDEX($C$1:$C$500,MATCH("Spe*",$C$1:$C$500,0)+R1)=0,"",INDEX($D$1:$D$500,MATCH("Spe*",$C$1:$C$500,0)+R1)) -> 4.86837 | U1: CRI | V1: Ra | W1: =IF(ISNA(MATCH(U1,$C$1:$C$300,0)),IF($C$1="",NA(),INDEX($D$1:$D$300,MATCH(V1,$C$1:$C$300,0))),IF($C$1="",NA(),INDEX($D$1:$D$300,MATCH(U1,$C$1:$C$300,0)))) -> 97.6 | Y1: =IF(S1="",NA(),ROUND(S1,0)) -> 380 | Z1: =IF(T1="",NA(),T1) -> 4.86837 | AB1: R15 | AC1: =IF($C$1="",NA(),INDEX($D$1:$D$300,MATCH(AB1,$C$1:$C$300,0))) -> 95.84 | AG1: u | AH1: v | AI1: u' | AJ1: v' | AK1: x | AL1: y | AN1: Seriennummer | AP1: =IF(G1="",NA(),G1) -> 380 | AQ1: =IF(AP1="",NA(),H1*AP1*0.00836/1000) -> 0.002172422912
A2: Software Rev. | B2: 1.3.5e B | C2: Software Rev. | D2: 1.3.5e B | F2: =F1+1 -> 2 | G2: =IF(INDEX($A$1:$A$500,MATCH("Spe*",$A$1:$A$500,0)+F2)=0,"",INDEX($A$1:$A$500,MATCH("Spe*",$A$1:$A$500,0)+F2)) -> 385 | H2: =IF(INDEX($A$1:$A$500,MATCH("Spe*",$A$1:$A$500,0)+F2)=0,"",INDEX($B$1:$B$500,MATCH("Spe*",$A$1:$A$500,0)+F2)) -> 0.74607 | J2: R1 | K2: =IF($A$1="",NA(),INDEX($B$1:$B$300,MATCH(J2,$A$1:$A$300,0))) -> 82.78 | L2: =IF(K2="",NA(),IF(K2 < 0, 0, K2)) -> 82.78 | M2: 385 | N2: =IF(H2="",NA(),H2) -> 0.74607 | P2: R14 | Q2: 97.9 | R2: =R1+1 -> 2 | S2: =IF(INDEX($C$1:$C$500,MATCH("Spe*",$C$1:$C$500,0)+R2)=0,"",INDEX($C$1:$C$500,MATCH("Spe*",$C$1:$C$500,0)+R2)) -> 385 | T2: =IF(INDEX($C$1:$C$500,MATCH("Spe*",$C$1:$C$500,0)+R2)=0,"",INDEX($D$1:$D$500,MATCH("Spe*",$C$1:$C$500,0)+R2)) -> 5.46996 | V2: R1 | W2: =IF($C$1="",NA(),INDEX($D$1:$D$300,MATCH(V2,$C$1:$C$300,0))) -> 97.11 | Y2: 385 | Z2: =IF(T2="",NA(),T2) -> 5.46996 | AB2: R14 | AC2: 99.22 | AE2: UK | AG2: 0.18006 | AH2: 0.26352 | AI2: =AG2 -> 0.18006 | AJ2: =AH2*1.5 -> 0.39528 | AK2: =(9*AG2)/(6*AG2-16*AJ2+12) -> 0.2398710457 | AL2: =(4*AJ2)/(6*AG2-16*AJ2+12) -> 0.2340361285 | AN2: Software Rev. | AP2: =IF(G2="",NA(),G2) -> 385 | AQ2: =IF(AP2="",NA(),H2*AP2*0.00836/1000) -> 0.002401300902
A3: Zeit | B3: 08:07:17 | C3: Zeit | D3: 08:18:37 | F3: =F2+1 -> 3 | G3: 390 | H3: 0.91387 | J3: R2 | K3: 90.11 | L3: 90.11 | M3: 390 | N3: 0.91387 | P3: R13 | Q3: 84.59 | R3: =R2+1 -> 3 | S3: 390 | T3: 6.42307 | V3: R2 | W3: 98.31 | Y3: 390 | Z3: 6.42307 | AB3: R13 | AC3: 97.25 | AG3: 0.18066 | AH3: 0.26589 | AI3: =AG3 -> 0.18066 | AJ3: =AH3*1.5 -> 0.398835 | AK3: =(9*AG3)/(6*AG3-16*AJ3+12) -> 0.2425834751 | AL3: =(4*AJ3)/(6*AG3-16*AJ3+12) -> 0.2380180825 | AN3: Zeit | AP3: 390 | AQ3: 0.002979581748
A4: Datum | B4: 29.04.2024 | C4: Datum | D4: 29.04.2024 | F4: 4 | G4: 395 | H4: 1.25551 | J4: R3 | K4: 95.97 | L4: 95.97 | M4: 395 | N4: 1.25551 | P4: R12 | Q4: 64.47 | R4: 4 | S4: 395 | T4: 7.85189 | V4: R3 | W4: 98.94 | Y4: 395 | Z4: 7.85189 | AB4: R12 | AC4: 96.12 | AG4: 0.18133 | AH4: 0.26846 | AI4: 0.18133 | AJ4: 0.40269 | AK4: 0.245595897 | AL4: 0.2424039946 | AN4: Datum | AP4: 395 | AQ4: 0.004145945122
F5: 5 | G5: =IF(G4="","",IF(INDEX($A$1:$A$500,MATCH("Spe*",$A$1:$A$500,0)+F5)=0,"",INDEX($A$1:$A$500,MATCH("Spe*",$A$1:$A$500,0)+F5))) -> 400 | H5: =IF(H4="","",IF(INDEX($A$1:$A$500,MATCH("Spe*",$A$1:$A$500,0)+F5)=0,"",INDEX($B$1:$B$500,MATCH("Spe*",$A$1:$A$500,0)+F5))) -> 1.80046 | J5: R4 | K5: 83.5 | L5: 83.5 | M5: 400 | N5: 1.80046 | P5: R11 | Q5: 82.47 | R5: 5 | S5: =IF(S4="","",IF(INDEX($C$1:$C$500,MATCH("Spe*",$C$1:$C$500,0)+R5)=0,"",INDEX($C$1:$C$500,MATCH("Spe*",$C$1:$C$500,0)+R5))) -> 400 | T5: =IF(T4="","",IF(INDEX($C$1:$C$500,MATCH("Spe*",$C$1:$C$500,0)+R5)=0,"",INDEX($D$1:$D$500,MATCH("Spe*",$C$1:$C$500,0)+R5))) -> 11.00745 | V5: R4 | W5: 96.5 | Y5: 400 | Z5: 11.00745 | AB5: R11 | AC5: 96.22 | AG5: 0.18208 | AH5: 0.27119 | AI5: 0.18208 | AJ5: 0.406785 | AK5: 0.2488973135 | AL5: 0.2471384828 | AP5: 400 | AQ5: 0.00602073824
A6: Integrationszeit [ms] | B6: 406 | C6: Integrationszeit [ms] | D6: 655 | F6: 6 | G6: =IF(G5="","",IF(INDEX($A$1:$A$500,MATCH("Spe*",$A$1:$A$500,0)+F6)=0,"",INDEX($A$1:$A$500,MATCH("Spe*",$A$1:$A$500,0)+F6))) -> 405 | H6: =IF(H5="","",IF(INDEX($A$1:$A$500,MATCH("Spe*",$A$1:$A$500,0)+F6)=0,"",INDEX($B$1:$B$500,MATCH("Spe*",$A$1:$A$500,0)+F6))) -> 2.15744 | J6: R5 | K6: 82.71 | L6: 82.71 | M6: 405 | N6: 2.15744 | P6: R10 | Q6: 76.65 | R6: 6 | S6: =IF(S5="","",IF(INDEX($C$1:$C$500,MATCH("Spe*",$C$1:$C$500,0)+R6)=0,"",INDEX($C$1:$C$500,MATCH("Spe*",$C$1:$C$500,0)+R6))) -> 405 | T6: =IF(T5="","",IF(INDEX($C$1:$C$500,MATCH("Spe*",$C$1:$C$500,0)+R6)=0,"",INDEX($D$1:$D$500,MATCH("Spe*",$C$1:$C$500,0)+R6))) -> 14.09629 | V6: R5 | W6: 97.12 | Y6: 405 | Z6: 14.09629 | AB6: R10 | AC6: 97.04 | AG6: 0.18293 | AH6: 0.27407 | AI6: 0.18293 | AJ6: 0.411105 | AK6: 0.2525146091 | AL6: 0.2522155248 | AN6: Integrationszeit [ms] | AP6: 405 | AQ6: 0.007304660352
A7: E vis [lx] | B7: 3202.16 | C7: E vis [lx] | D7: 2469.94 | F7: 7 | G7: 410 | H7: 2.73957 | J7: R6 | K7: 86.5 | L7: 86.5 | M7: 410 | N7: 2.73957 | P7: R9 | Q7: 17.21 | R7: 7 | S7: 410 | T7: 15.79012 | V7: R6 | W7: 98.12 | Y7: 410 | Z7: 15.79012 | AB7: R9 | AC7: 90.19 | AG7: 0.18388 | AH7: 0.27709 | AI7: 0.18388 | AJ7: 0.415635 | AK7: 0.2564526927 | AL7: 0.2576335168 | AN7: E vis [lx] | AP7: 410 | AQ7: 0.009390150132
A8: Ee [W/m²] | B8: 10.564 | C8: Ee [W/m²] | D8: 11.76 | F8: 8 | G8: 415 | H8: 3.62239 | J8: R7 | K8: 88.13 | L8: 88.13 | M8: 415 | N8: 3.62239 | P8: R8 | Q8: 68.09 | R8: 8 | S8: 415 | T8: 17.87473 | V8: R7 | W8: 98.39 | Y8: 415 | Z8: 17.87473 | AB8: R8 | AC8: 96.29 | AG8: 0.18494 | AH8: 0.28021 | AI8: 0.18494 | AJ8: 0.420315 | AK8: 0.2606991824 | AL8: 0.263330514 | AN8: Ee [W/m²] | AP8: 415 | AQ8: 0.01256751987
A9: LER [lm/W] | B9: 303.1 | C9: LER [lm/W] | D9: 210 | F9: 9 | G9: 420 | H9: 4.63744 | J9: R8 | K9: 68.09 | L9: 68.09 | M9: 420 | N9: 4.63744 | P9: R7 | Q9: 88.13 | R9: 9 | S9: 420 | T9: 18.96669 | V9: R8 | W9: 96.29 | Y9: 420 | Z9: 18.96669 | AB9: R7 | AC9: 98.39 | AG9: 0.18611 | AH9: 0.28342 | AI9: 0.18611 | AJ9: 0.42513 | AK9: 0.2652575468 | AL9: 0.2693005711 | AN9: LER [lm/W] | AP9: 420 | AQ9: 0.01628297933
A10: CCT [K] | B10: 4014 | C10: CCT [K] | D10: 5126 | F10: 10 | G10: 425 | H10: 6.16806 | J10: R9 | K10: 17.21 | L10: 17.21 | M10: 425 | N10: 6.16806 | P10: R6 | Q10: 86.5 | R10: 10 | S10: 425 | T10: 19.20405 | V10: R9 | W10: 90.19 | Y10: 425 | Z10: 19.20405 | AB10: R6 | AC10: 98.12 | AG10: 0.1874 | AH10: 0.28668 | AI10: 0.1874 | AJ10: 0.43002 | AK10: 0.2701118499 | AL10: 0.2754737287 | AN10: CCT [K] | AP10: 425 | AQ10: 0.02191511718
A11: Duv | B11: 0.003 | C11: Duv | D11: 0.007 | F11: 11 | G11: 430 | H11: 8.7165 | J11: R10 | K11: 76.65 | L11: 76.65 | M11: 430 | N11: 8.7165 | P11: R5 | Q11: 82.71 | R11: 11 | S11: 430 | T11: 19.38673 | V11: R10 | W11: 97.04 | Y11: 430 | Z11: 19.38673 | AB11: R5 | AC11: 97.12 | AG11: 0.1888 | AH11: 0.28997 | AI11: 0.1888 | AJ11: 0.434955 | AK11: 0.2752400575 | AL11: 0.2818197722 | AN11: Duv | AP11: 430 | AQ11: 0.0313340742
A12: TM30 Rf | B12: 86.1 | C12: TM30 Rf | D12: 97.7 | F12: 12 | G12: 435 | H12: 13.82133 | J12: R11 | K12: 82.47 | L12: 82.47 | M12: 435 | N12: 13.82133 | P12: R4 | Q12: 83.5 | R12: 12 | S12: 435 | T12: 21.32727 | V12: R11 | W12: 96.22 | Y12: 435 | Z12: 21.32727 | AB12: R4 | AC12: 96.5 | AG12: 0.19032 | AH12: 0.29326 | AI12: 0.19032 | AJ12: 0.43989 | AK12: 0.2806307015 | AL12: 0.2882785467 | AN12: TM30 Rf | AP12: 435 | AQ12: 0.05026264868
A13: TM30 Rg | B13: 95.2 | C13: TM30 Rg | D13: 98.2 | F13: 13 | G13: 440 | H13: 23.31664 | J13: R12 | K13: 64.47 | L13: 64.47 | M13: 440 | N13: 23.31664 | P13: R3 | Q13: 95.97 | R13: 13 | S13: 440 | T13: 23.8407 | V13: R12 | W13: 96.12 | Y13: 440 | Z13: 23.8407 | AB13: R3 | AC13: 98.94 | AG13: 0.19462 | AH13: 0.30141 | AI13: 0.19462 | AJ13: 0.452115 | AK13: 0.2951829157 | AL13: 0.3047685494 | AN13: TM30 Rg | AP13: 440 | AQ13: 0.08576792858
A14: R-Bin01 a | B14: 0.973646 | C14: R-Bin01 a | D14: 0.975135 | F14: 14 | G14: 445 | H14: 38.41972 | J14: R13 | K14: 84.59 | L14: 84.59 | M14: 445 | N14: 38.41972 | P14: R2 | Q14: 90.11 | R14: 14 | S14: 445 | T14: 26.22265 | V14: R13 | W14: 97.25 | Y14: 445 | Z14: 26.22265 | AB14: R2 | AC14: 98.31 | AG14: 0.19962 | AH14: 0.30921 | AI14: 0.19962 | AJ14: 0.463815 | AK14: 0.3110056295 | AL14: 0.3211637134 | AN14: R-Bin01 a | AP14: 445 | AQ14: 0.1429290423
A15: R-Bin01 b | B15: 0.228063 | C15: R-Bin01 b | D15: 0.221614 | F15: 15 | G15: 450 | H15: 50.48501 | J15: R14 | K15: 97.9 | L15: 97.9 | M15: 450 | N15: 50.48501 | P15: R1 | Q15: 82.78 | R15: 15 | S15: 450 | T15: 28.43003 | V15: R14 | W15: 99.22 | Y15: 450 | Z15: 28.43003 | AB15: R1 | AC15: 97.11 | AG15: 0.20525 | AH15: 0.31647 | AI15: 0.20525 | AJ15: 0.474705 | AK15: 0.3277462555 | AL15: 0.3368960048 | AN15: R-Bin01 b | AP15: 450 | AQ15: 0.1899246076
A16: R-Bin02 a | B16: 0.819507 | C16: R-Bin02 a | D16: 0.829037 | F16: 16 | G16: 455 | H16: 48.12591 | J16: R15 | K16: 76.53 | L16: 76.53 | M16: 455 | N16: 48.12591 | O16: CRI | P16: Ra | Q16: =IF(ISNA(MATCH(O16,$A$1:$A$300,0)),IF($A$1="",NA(),INDEX($B$1:$B$300,MATCH(P16,$A$1:$A$300,0))),IF($A$1="",NA(),INDEX($B$1:$B$300,MATCH(O16,$A$1:$A$300,0)))) -> 84.72 | R16: 16 | S16: 455 | T16: 29.9859 | V16: R15 | W16: 95.84 | Y16: 455 | Z16: 29.9859 | AA16: CRI | AB16: Ra | AC16: =IF(ISNA(MATCH(AA16,$C$1:$C$300,0)),IF($C$1="",NA(),INDEX($D$1:$D$300,MATCH(AB16,$C$1:$C$300,0))),IF($C$1="",NA(),INDEX($D$1:$D$300,MATCH(AA16,$C$1:$C$300,0)))) -> 97.6 | AG16: 0.21142 | AH16: 0.32312 | AI16: 0.21142 | AJ16: 0.48468 | AK16: 0.3451041417 | AL16: 0.3516225216 | AN16: R-Bin02 a | AP16: 455 | AQ16: 0.1830613365
A17: R-Bin02 b | B17: 0.573069 | C17: R-Bin02 b | D17: 0.559194 | F17: 17 | G17: 460 | H17: 37.25754 | J17: Integrationtime [ms] | M17: 460 | N17: 37.25754 | R17: 17 | S17: 460 | T17: 30.98232 | V17: Integrationtime [ms] | Y17: 460 | Z17: 30.98232 | AG17: 0.21807 | AH17: 0.32909 | AI17: 0.21807 | AJ17: 0.493635 | AK17: 0.3627607546 | AL17: 0.3649621275 | AN17: R-Bin02 b | AP17: 460 | AQ17: 0.1432775958
A18: R-Bin03 a | B18: 0.547637 | C18: R-Bin03 a | D18: 0.548553 | F18: 18 | G18: 465 | H18: 29.61403 | J18: Integrationszeit [ms] | K18: =IF(ISNA(MATCH(J17,$A$1:$A$300,0)),IF($A$1="",NA(),INDEX($B$1:$B$300,MATCH(J18,$A$1:$A$300,0))),IF($A$1="",NA(),INDEX($B$1:$B$300,MATCH(J17,$A$1:$A$300,0)))) -> 406 | M18: 465 | N18: 29.61403 | P18: measurement | Q18: M_000003.CSV | R18: 18 | S18: 465 | T18: 31.52933 | V18: Integrationszeit [ms] | W18: =IF(ISNA(MATCH(V17,$C$1:$C$300,0)),IF($C$1="",NA(),INDEX($D$1:$D$300,MATCH(V18,$C$1:$C$300,0))),IF($C$1="",NA(),INDEX($D$1:$D$300,MATCH(V17,$C$1:$C$300,0)))) -> 655 | Y18: 465 | Z18: 31.52933 | AB18: reference | AC18: M_000004.CSV | AG18: 0.22511 | AH18: 0.33439 | AI18: 0.22511 | AJ18: 0.501585 | AK18: 0.380446172 | AL18: 0.3767562391 | AN18: R-Bin03 a | AP18: 465 | AQ18: 0.1151215802
A19: R-Bin03 b | B19: 0.836716 | C19: R-Bin03 b | D19: 0.836116 | F19: 19 | G19: 470 | H19: 24.33552 | M19: 470 | N19: 24.33552 | R19: 19 | S19: 470 | T19: 31.89343 | Y19: 470 | Z19: 31.89343 | AG19: 0.23247 | AH19: 0.33904 | AI19: 0.23247 | AJ19: 0.50856 | AK19: 0.3979242506 | AL19: 0.3868950486 | AN19: R-Bin03 b | AP19: 470 | AQ19: 0.09561912518
A20: R-Bin04 a | B20: 0.166316 | C20: R-Bin04 a | D20: 0.181047 | F20: 20 | G20: 475 | H20: 20.10695 | J20: Lambda Peak [nm] | K20: =IF($A$1="",NA(),INDEX($B$1:$B$300,MATCH(J20,$A$1:$A$300,0))) -> 595 | M20: 475 | N20: 20.10695 | P20: Time | R20: 20 | S20: 475 | T20: 32.68859 | V20: Lambda Peak [nm] | W20: =IF($C$1="",NA(),INDEX($D$1:$D$300,MATCH(V20,$C$1:$C$300,0))) -> 535 | Y20: 475 | Z20: 32.68859 | AB20: Time | AG20: 0.2401 | AH20: 0.34308 | AI20: 0.2401 | AJ20: 0.51462 | AK20: 0.4150245454 | AL20: 0.3953536611 | AN20: R-Bin04 a | AP20: 475 | AQ20: 0.07984469845
A21: R-Bin04 b | B21: 0.986073 | C21: R-Bin04 b | D21: 0.983474 | F21: 21 | G21: 480 | H21: 18.81181 | J21: Lambda Peak | K21: =IF($A$1="",NA(),INDEX($B$1:$B$300,MATCH(J21,$A$1:$A$300,0))) -> 53.94564 | M21: 480 | N21: 18.81181 | P21: Zeit | Q21: =IF(ISNA(MATCH(P20,$A$1:$A$300,0)),IF($A$1="",NA(),INDEX($B$1:$B$300,MATCH(P21,$A$1:$A$300,0))),IF($A$1="",NA(),INDEX($B$1:$B$300,MATCH(P20,$A$1:$A$300,0)))) -> 08:07:17 | R21: 21 | S21: 480 | T21: 33.24746 | V21: Lambda Peak | W21: =IF($C$1="",NA(),INDEX($D$1:$D$300,MATCH(V21,$C$1:$C$300,0))) -> 35.7016 | Y21: 480 | Z21: 33.24746 | AB21: Zeit | AC21: =IF(ISNA(MATCH(AB20,$C$1:$C$300,0)),IF($C$1="",NA(),INDEX($D$1:$D$300,MATCH(AB21,$C$1:$C$300,0))),IF($C$1="",NA(),INDEX($D$1:$D$300,MATCH(AB20,$C$1:$C$300,0)))) -> 08:18:37 | AG21: 0.24702 | AH21: 0.34655 | AI21: 0.24702 | AJ21: 0.519825 | AK21: 0.4304384192 | AL21: 0.4025812597 | AN21: R-Bin04 b | AP21: 480 | AQ21: 0.07548803117
A22: R-Bin05 a | B22: -0.116158 | C22: R-Bin05 a | D22: -0.107809 | F22: 22 | G22: 485 | H22: 19.29689 | M22: 485 | N22: 19.29689 | P22: Date | R22: 22 | S22: 485 | T22: 32.78748 | Y22: 485 | Z22: 32.78748 | AB22: Date | AG22: 0.25591 | AH22: 0.34951 | AI22: 0.25591 | AJ22: 0.524265 | AK22: 0.4474629023 | AL22: 0.4074160421 | AN22: R-Bin05 a | AP22: 485 | AQ22: 0.07824117019
A23: R-Bin05 b | B23: 0.993231 | C23: R-Bin05 b | D23: 0.994172 | F23: 23 | G23: 490 | H23: 21.2507 | J23: x | K23: =IF($A$1="",NA(),INDEX($B$1:$B$300,MATCH(J23,$A$1:$A$300,0))) -> 0.3819 | M23: 490 | N23: 21.2507 | P23: Datum | Q23: =IF(ISNA(MATCH(P22,$A$1:$A$300,0)),IF($A$1="",NA(),INDEX($B$1:$B$300,MATCH(P23,$A$1:$A$300,0))),IF($A$1="",NA(),INDEX($B$1:$B$300,MATCH(P22,$A$1:$A$300,0)))) -> 29.04.2024 | R23: 23 | S23: 490 | T23: 32.9073 | V23: x | W23: =IF($C$1="",NA(),INDEX($D$1:$D$300,MATCH(V23,$C$1:$C$300,0))) -> 0.3426 | Y23: 490 | Z23: 32.9073 | AB23: Datum | AC23: =IF(ISNA(MATCH(AB22,$C$1:$C$300,0)),IF($C$1="",NA(),INDEX($D$1:$D$300,MATCH(AB23,$C$1:$C$300,0))),IF($C$1="",NA(),INDEX($D$1:$D$300,MATCH(AB22,$C$1:$C$300,0)))) -> 29.04.2024 | AG23: 0.264 | AH23: 0.352 | AI23: 0.264 | AJ23: 0.528 | AK23: 0.4626168224 | AL23: 0.4112149533 | AN23: R-Bin05 b | AP23: 490 | AQ23: 0.08705136748
A24: R-Bin06 a | B24: -0.546519 | C24: R-Bin06 a | D24: -0.524015 | F24: 24 | G24: 495 | H24: 24.3909 | J24: y | K24: 0.3842 | M24: 495 | N24: 24.3909 | P24: Ee [W/m2] | R24: 24 | S24: 495 | T24: 33.77885 | V24: y | W24: 0.3637 | Y24: 495 | Z24: 33.77885 | AB24: Ee [W/m≤] | AG24: 0.27218 | AH24: 0.35407 | AI24: 0.27218 | AJ24: 0.531105 | AK24: 0.4770066597 | AL24: 0.4136815048 | AN24: R-Bin06 a | AP24: 495 | AQ24: 0.1009344224
A25: R-Bin06 b | B25: 0.837446 | C25: R-Bin06 b | D25: 0.851709 | F25: 25 | G25: 500 | H25: 27.90953 | J25: u' | K25: 0.2231 | M25: 500 | N25: 27.90953 | P25: Ee [W/m²] | Q25: =IF(ISNA(MATCH(P24,$A$1:$A$300,0)),IF($A$1="",NA(),INDEX($B$1:$B$300,MATCH(P25,$A$1:$A$300,0))),IF($A$1="",NA(),INDEX($B$1:$B$300,MATCH(P24,$A$1:$A$300,0)))) -> 10.564 | R25: 25 | S25: 500 | T25: 33.76612 | V25: u' | W25: 0.2052 | Y25: 500 | Z25: 33.76612 | AB25: Ee [W/m²] | AC25: =IF(ISNA(MATCH(AB24,$C$1:$C$300,0)),IF($C$1="",NA(),INDEX($D$1:$D$300,MATCH(AB25,$C$1:$C$300,0))),IF($C$1="",NA(),INDEX($D$1:$D$300,MATCH(AB24,$C$1:$C$300,0)))) -> 11.76 | AG25: 0.28039 | AH25: 0.35577 | AI25: 0.28039 | AJ25: 0.533655 | AK25: 0.4905868356 | AL25: 0.4149840781 | AN25: R-Bin06 b | AP25: 500 | AQ25: 0.1166618354
A26: R-Bin07 a | B26: -0.85276 | C26: R-Bin07 a | D26: -0.831868 | F26: 26 | G26: 505 | H26: 31.27134 | J26: v' | K26: 0.505 | M26: 505 | N26: 31.27134 | P26: LER [lm/W] | Q26: =IF($A$1="",NA(),INDEX($B$1:$B$300,MATCH(P26,$A$1:$A$300,0))) -> 303.1 | R26: 26 | S26: 505 | T26: 33.90158 | V26: v' | W26: 0.4901 | Y26: 505 | Z26: 33.90158 | AB26: LER [lm/W] | AC26: =IF($C$1="",NA(),INDEX($D$1:$D$300,MATCH(AB26,$C$1:$C$300,0))) -> 210 | AG26: 0.28863 | AH26: 0.35714 | AI26: 0.28863 | AJ26: 0.53571 | AK26: 0.5033834455 | AL26: 0.4152452707 | AN26: R-Bin07 a | AP26: 505 | AQ26: 0.1320213432
A27: R-Bin07 b | B27: 0.522302 | C27: R-Bin07 b | D27: 0.554973 | F27: 27 | G27: 510 | H27: 33.84137 | J27: u | K27: 0.2231 | M27: 510 | N27: 33.84137 | P27: Re | Q27: =IF($A$1="",NA(),INDEX($B$1:$B$300,MATCH(P27,$A$1:$A$300,0))) -> 78.51 | R27: 27 | S27: 510 | T27: 34.18729 | V27: u | W27: 0.2052 | Y27: 510 | Z27: 34.18729 | AB27: Re | AC27: =IF($C$1="",NA(),INDEX($D$1:$D$300,MATCH(AB27,$C$1:$C$300,0))) -> 96.84 | AG27: 0.29685 | AH27: 0.35823 | AI27: 0.29685 | AJ27: 0.537345 | AK27: 0.5154063408 | AL27: 0.41465165 | AN27: R-Bin07 b | AP27: 510 | AQ27: 0.1442860651
A28: R-Bin08 a | B28: -0.988515 | C28: R-Bin08 a | D28: -0.989758 | F28: 28 | G28: 515 | H28: 35.92001 | J28: v | K28: 0.3367 | M28: 515 | N28: 35.92001 | P28: GAI | Q28: =IF(ISNA(MATCH(O28,$A$1:$A$300,0)),IF($A$1="",NA(),INDEX($B$1:$B$300,MATCH(P28,$A$1:$A$300,0))),IF($A$1="",NA(),INDEX($B$1:$B$300,MATCH(O28,$A$1:$A$300,0)))) -> 70.46 | R28: 28 | S28: 515 | T28: 33.82518 | V28: v | W28: 0.3267 | Y28: 515 | Z28: 33.82518 | AB28: GAI | AC28: =IF(ISNA(MATCH(AA28,$C$1:$C$300,0)),IF($C$1="",NA(),INDEX($D$1:$D$300,MATCH(AB28,$C$1:$C$300,0))),IF($C$1="",NA(),INDEX($D$1:$D$300,MATCH(AA28,$C$1:$C$300,0)))) -> 84.82 | AG28: 0.30505 | AH28: 0.35907 | AI28: 0.30505 | AJ28: 0.538605 | AK28: 0.5266929107 | AL28: 0.4133084706 | AN28: R-Bin08 a | AP28: 515 | AQ28: 0.1546500111
A29: R-Bin08 b | B29: 0.15112 | C29: R-Bin08 b | D29: 0.142753 | F29: 29 | G29: 520 | H29: 37.57893 | M29: 520 | N29: 37.57893 | R29: 29 | S29: 520 | T29: 33.8965 | Y29: 520 | Z29: 33.8965 | AG29: 0.3132 | AH29: 0.35968 | AI29: 0.3132 | AJ29: 0.53952 | AK29: 0.5372335559 | AL29: 0.4113072912 | AN29: R-Bin08 b | AP29: 520 | AQ29: 0.1633631245
A30: R-Bin09 a | B30: -0.993545 | C30: R-Bin09 a | D30: -0.989709 | F30: 30 | G30: 525 | H30: 38.95928 | J30: CCT [K] | K30: =IF($A$1="",NA(),INDEX($B$1:$B$300,MATCH(J30,$A$1:$A$300,0))) -> 4014 | M30: 525 | N30: 38.95928 | P30: TLCI | Q30: =IF($A$1="",NA(),INDEX($B$1:$B$300,MATCH(P30,$A$1:$A$300,0))) -> 75 | R30: 30 | S30: 525 | T30: 34.67546 | V30: CCT [K] | W30: =IF($C$1="",NA(),INDEX($D$1:$D$300,MATCH(V30,$C$1:$C$300,0))) -> 5126 | Y30: 525 | Z30: 34.67546 | AB30: TLCI | AC30: =IF($C$1="",NA(),INDEX($D$1:$D$300,MATCH(AB30,$C$1:$C$300,0))) -> 100 | AG30: 0.32129 | AH30: 0.36011 | AI30: 0.32129 | AJ30: 0.540165 | AK30: 0.5471249361 | AL30: 0.4088210251 | AN30: R-Bin09 a | AP30: 525 | AQ30: 0.1709922799
A31: R-Bin09 b | B31: -0.113437 | C31: R-Bin09 b | D31: -0.143095 | F31: 31 | G31: 530 | H31: 40.10447 | J31: Duv | K31: =IF($A$1="",NA(),INDEX($B$1:$B$300,MATCH(J31,$A$1:$A$300,0))) -> 0.003 | M31: 530 | N31: 40.10447 | P31: Ref.Type | Q31: =IF(K30<3400,"Plank",IF(K30>5000,"Daylight","Plank-Daylight Mix")) -> Plank-Daylight Mix | R31: 31 | S31: 530 | T31: 35.29331 | V31: Duv | W31: =IF($C$1="",NA(),INDEX($D$1:$D$300,MATCH(V31,$C$1:$C$300,0))) -> 0.007 | Y31: 530 | Z31: 35.29331 | AB31: Ref.Type | AC31: =IF(W30<3400,"P",IF(W30>5000,"D","M")) -> D | AG31: 0.32931 | AH31: 0.36038 | AI31: 0.32931 | AJ31: 0.54057 | AK31: 0.5563984726 | AL31: 0.4059293301 | AN31: R-Bin09 b | AP31: 530 | AQ31: 0.1776948857
A32: R-Bin10 a | B32: -0.870587 | C32: R-Bin10 a | D32: -0.857875 | F32: 32 | G32: 535 | H32: 41.30423 | J32: E vis [fc] | M32: 535 | N32: 41.30423 | O32: =IF(Q32="",NA(),IF(Q32 < 0, 0, Q32)) -> 80 | P32: Q1 | Q32: =IF($A$1="",NA(),INDEX($B$1:$B$300,MATCH(P32,$A$1:$A$300,0))) -> 80 | R32: 32 | S32: 535 | T32: 35.68224 | V32: E vis [fc] | Y32: 535 | Z32: 35.68224 | AB32: Q1 | AC32: =IF($C$1="",NA(),INDEX($D$1:$D$300,MATCH(AB32,$C$1:$C$300,0))) -> 99 | AG32: 0.33724 | AH32: 0.36051 | AI32: 0.33724 | AJ32: 0.540765 | AK32: 0.565080429 | AL32: 0.4027144772 | AN32: R-Bin10 a | AP32: 535 | AQ32: 0.1847372991
A33: R-Bin10 b | B33: -0.492015 | C33: R-Bin10 b | D33: -0.513859 | F33: 33 | G33: 540 | H33: 42.23973 | J33: E vis [lx] | K33: =IF(ISNA(MATCH(J32,$A$1:$A$300,0)),IF($A$1="",NA(),INDEX($B$1:$B$300,MATCH(J33,$A$1:$A$300,0))),IF($A$1="",NA(),INDEX($B$1:$B$300,MATCH(J32,$A$1:$A$300,0)))) -> 3202.16 | M33: 540 | N33: 42.23973 | O33: =IF(Q33="",NA(),IF(Q33 < 0, 0, Q33)) -> 86 | P33: Q2 | Q33: 86 | R33: 33 | S33: 540 | T33: 35.4527 | V33: E vis [lx] | W33: =IF(ISNA(MATCH(V32,$C$1:$C$300,0)),IF($C$1="",NA(),INDEX($D$1:$D$300,MATCH(V33,$C$1:$C$300,0))),IF($C$1="",NA(),INDEX($D$1:$D$300,MATCH(V32,$C$1:$C$300,0)))) -> 2469.94 | Y33: 540 | Z33: 35.4527 | AB33: Q2 | AC33: 99 | AG33: 0.37 | AH33: 0.3598 | AI33: =AG33 -> 0.37 | AJ33: =AH33*1.5 -> 0.5397 | AK33: =(9*AG33)/(6*AG33-16*AJ33+12) -> 0.5962612806 | AL33: =(4*AJ33)/(6*AG33-16*AJ33+12) -> 0.386549205 | AN33: R-Bin10 b | AP33: 540 | AQ33: 0.1906870371
A34: R-Bin11 a | B34: -0.566742 | C34: R-Bin11 a | D34: -0.557915 | F34: 34 | G34: 545 | H34: 43.3828 | M34: 545 | N34: 43.3828 | O34: 86 | P34: Q3 | Q34: 86 | R34: 34 | S34: 545 | T34: 35.49351 | Y34: 545 | Z34: 35.49351 | AB34: Q3 | AC34: 99 | AG34: 0.4 | AH34: 0.357 | AI34: =AG34 -> 0.4 | AJ34: =AH34*1.5 -> 0.5355 | AK34: =(9*AG34)/(6*AG34-16*AJ34+12) -> 0.6172839506 | AL34: =(4*AJ34)/(6*AG34-16*AJ34+12) -> 0.3672839506 | AN34: R-Bin11 a | AP34: 545 | AQ34: 0.1976607134
A35: R-Bin11 b | B35: -0.823895 | C35: R-Bin11 b | D35: -0.829898 | F35: 35 | G35: 550 | H35: 44.50492 | J35: Flicker Index | K35: =IF($A$1="",NA(),INDEX($B$1:$B$300,MATCH(J35,$A$1:$A$300,0))) -> 0.051 | M35: 550 | N35: 44.50492 | O35: 89 | P35: Q4 | Q35: 89 | R35: 35 | S35: 550 | T35: 35.56057 | V35: Flicker Index | W35: =IF($C$1="",NA(),INDEX($D$1:$D$300,MATCH(V35,$C$1:$C$300,0))) -> 0.002 | Y35: 550 | Z35: 35.56057 | AB35: Q4 | AC35: 99 | AN35: R-Bin11 b | AP35: 550 | AQ35: 0.2046336222
A36: R-Bin12 a | B36: -0.308801 | C36: R-Bin12 a | D36: -0.152465 | F36: 36 | G36: 555 | H36: 45.70971 | J36: Flicker [Hz] | K36: =IF($A$1="",NA(),INDEX($B$1:$B$300,MATCH(J36,$A$1:$A$300,0))) -> 99.9 | M36: 555 | N36: 45.70971 | O36: 99 | P36: Q5 | Q36: 99 | R36: 36 | S36: 555 | T36: 35.34911 | V36: Flicker [Hz] | W36: =IF($C$1="",NA(),INDEX($D$1:$D$300,MATCH(V36,$C$1:$C$300,0))) -> 0 | Y36: 555 | Z36: 35.34911 | AB36: Q5 | AC36: 99 | AN36: R-Bin12 a | AP36: 555 | AQ36: 0.2120839125
A37: R-Bin12 b | B37: -0.951127 | C37: R-Bin12 b | D37: -0.988309 | F37: 37 | G37: 560 | H37: 47.0494 | J37: Flicker [%] | K37: =IF($A$1="",NA(),INDEX($B$1:$B$300,MATCH(J37,$A$1:$A$300,0))) -> 17.2 | M37: 560 | N37: 47.0494 | O37: 76 | P37: Q6 | Q37: 76 | R37: 37 | S37: 560 | T37: 34.8145 | V37: Flicker [%] | W37: =IF($C$1="",NA(),INDEX($D$1:$D$300,MATCH(V37,$C$1:$C$300,0))) -> 1 | Y37: 560 | Z37: 34.8145 | AB37: Q6 | AC37: 99 | AN37: R-Bin12 b | AP37: 560 | AQ37: 0.220266471
A38: R-Bin13 a | B38: 0.183578 | C38: R-Bin13 a | D38: 0.165667 | F38: 38 | G38: 565 | H38: 48.18798 | J38: Excitation Purity [%] | M38: 565 | N38: 48.18798 | O38: 95 | P38: Q7 | Q38: 95 | R38: 38 | S38: 565 | T38: 34.08248 | V38: Excitation Purity [%] | Y38: 565 | Z38: 34.08248 | AB38: Q7 | AC38: 99 | AN38: R-Bin13 a | AP38: 565 | AQ38: 0.2276111047
A39: R-Bin13 b | B39: -0.983005 | C39: R-Bin13 b | D39: -0.986182 | F39: 39 | G39: 570 | H39: 49.69511 | J39: Farbreinheit [%] | K39: =IF(ISNA(MATCH(J38,$A$1:$A$300,0)),IF($A$1="",NA(),INDEX($B$1:$B$300,MATCH(J39,$A$1:$A$300,0))),IF($A$1="",NA(),INDEX($B$1:$B$300,MATCH(J38,$A$1:$A$300,0)))) -> 29.9 | M39: 570 | N39: 49.69511 | O39: 86 | P39: Q8 | Q39: 86 | R39: 39 | S39: 570 | T39: 33.55296 | V39: Farbreinheit [%] | W39: =IF(ISNA(MATCH(V38,$C$1:$C$300,0)),IF($C$1="",NA(),INDEX($D$1:$D$300,MATCH(V39,$C$1:$C$300,0))),IF($C$1="",NA(),INDEX($D$1:$D$300,MATCH(V38,$C$1:$C$300,0)))) -> 12 | Y39: 570 | Z39: 33.55296 | AB39: Q8 | AC39: 99 | AN39: R-Bin13 b | AP39: 570 | AQ39: 0.2368071382
A40: R-Bin14 a | B40: 0.581565 | C40: R-Bin14 a | D40: 0.598945 | F40: 40 | G40: 575 | H40: 51.01311 | J40: Dominante Wellenlänge [nm] | K40: =IF(ISNA(MATCH(J41,$A$1:$A$300,0)),IF($A$1="",NA(),INDEX($B$1:$B$300,MATCH("Dominante Wellenl*",$A$1:$A$300,0))),IF($A$1="",NA(),INDEX($B$1:$B$300,MATCH(J41,$A$1:$A$300,0)))) -> 577 | M40: 575 | N40: 51.01311 | O40: 96 | P40: Q9 | Q40: 96 | R40: 40 | S40: 575 | T40: 33.20971 | V40: Dominante Wellenlänge [nm] | W40: =IF(ISNA(MATCH(V41,$C$1:$C$300,0)),IF($C$1="",NA(),INDEX($D$1:$D$300,MATCH(V40,$C$1:$C$300,0))),IF($C$1="",NA(),INDEX($D$1:$D$300,MATCH(V41,$C$1:$C$300,0)))) -> 565 | Y40: 575 | Z40: 33.20971 | AB40: Q9 | AC40: 99 | AN40: R-Bin14 a | AP40: 575 | AQ40: 0.2452200198
A41: R-Bin14 b | B41: -0.8135 | C41: R-Bin14 b | D41: -0.80079 | F41: 41 | G41: 580 | H41: 52.25586 | J41: Dominant wavelength [nm] | M41: 580 | N41: 52.25586 | O41: 85 | P41: Q10 | Q41: 85 | R41: 41 | S41: 580 | T41: 33.34385 | V41: Dominant wavelength [nm] | Y41: 580 | Z41: 33.34385 | AB41: Q10 | AC41: 99 | AN41: R-Bin14 b | AP41: 580 | AQ41: 0.253378214
A42: R-Bin15 a | B42: 0.816602 | C42: R-Bin15 a | D42: 0.837548 | F42: 42 | G42: 585 | H42: 53.20884 | M42: 585 | N42: 53.20884 | O42: 58 | P42: Q11 | Q42: 58 | R42: 42 | S42: 585 | T42: 32.96365 | Y42: 585 | Z42: 32.96365 | AB42: Q11 | AC42: 99 | AN42: R-Bin15 a | AP42: 585 | AQ42: 0.2602231529
A43: R-Bin15 b | B43: -0.577202 | C43: R-Bin15 b | D43: -0.546364 | F43: 43 | G43: 590 | H43: 53.49827 | J43: TM30 Rf | K43: =IF($A$1="",NA(),INDEX($B$1:$B$300,MATCH(J43,$A$1:$A$300,0))) -> 86.1 | M43: 590 | N43: 53.49827 | O43: 96 | P43: Q12 | Q43: 96 | R43: 43 | S43: 590 | T43: 31.82682 | V43: TM30 Rf | W43: =IF($C$1="",NA(),INDEX($D$1:$D$300,MATCH(V43,$C$1:$C$300,0))) -> 97.7 | Y43: 590 | Z43: 31.82682 | AB43: Q12 | AC43: 99 | AN43: R-Bin15 b | AP43: 590 | AQ43: 0.2638748669
A44: R-Bin16 a | B44: 0.985124 | C44: R-Bin16 a | D44: 0.986995 | F44: 44 | G44: 595 | H44: 53.85181 | J44: TM30 Rg | K44: 95.2 | M44: 595 | N44: 53.85181 | O44: 83 | P44: Q13 | Q44: 83 | R44: 44 | S44: 595 | T44: 31.91584 | V44: TM30 Rg | W44: 98.2 | Y44: 595 | Z44: 31.91584 | AB44: Q13 | AC44: 99 | AN44: R-Bin16 a | AP44: 595 | AQ44: 0.2678696733
A45: R-Bin16 b | B45: -0.171848 | C45: R-Bin16 b | D45: -0.160751 | F45: 45 | G45: 600 | H45: 53.78582 | J45: R-Bin01 a | K45: 0.973646 | M45: 600 | N45: 53.78582 | O45: 92 | P45: Q14 | Q45: 92 | R45: 45 | S45: 600 | T45: 32.57686 | V45: R-Bin01 a | W45: 0.975135 | Y45: 600 | Z45: 32.57686 | AB45: Q14 | AC45: 99 | AN45: R-Bin16 b | AP45: 600 | AQ45: 0.2697896731
A46: T-Bin01 a | B46: 0.871461 | C46: T-Bin01 a | D46: 0.965486 | F46: 46 | G46: 605 | H46: 52.93155 | J46: R-Bin01 b | K46: 0.228063 | M46: 605 | N46: 52.93155 | O46: 93 | P46: Q15 | Q46: 93 | R46: 46 | S46: 605 | T46: 32.98091 | V46: R-Bin01 b | W46: 0.221614 | Y46: 605 | Z46: 32.98091 | AB46: Q15 | AC46: 99 | AN46: T-Bin01 a | AP46: 605 | AQ46: 0.2677171936
A47: T-Bin01 b | B47: 0.203593 | C47: T-Bin01 b | D47: 0.219456 | F47: 47 | G47: 610 | H47: 51.47096 | J47: R-Bin02 a | K47: 0.819507 | M47: 610 | N47: 51.47096 | O47: 50 | P47: Q16 | Q47: 50 | R47: 47 | S47: 610 | T47: 32.89079 | V47: R-Bin02 a | W47: 0.829037 | Y47: 610 | Z47: 32.89079 | AB47: Q16 | AC47: 99 | AN47: T-Bin01 b | AP47: 610 | AQ47: 0.2624813076
A48: T-Bin02 a | B48: 0.738606 | C48: T-Bin02 a | D48: 0.825548 | F48: 48 | G48: 615 | H48: 49.46273 | J48: R-Bin02 b | K48: 0.573069 | M48: 615 | N48: 49.46273 | O48: 93 | P48: Q17 | Q48: 93 | R48: 48 | S48: 615 | T48: 32.65405 | V48: R-Bin02 b | W48: 0.559194 | Y48: 615 | Z48: 32.65405 | AB48: Q17 | AC48: 99 | AN48: T-Bin02 a | AP48: 615 | AQ48: 0.25430768
A49: T-Bin02 b | B49: 0.57585 | C49: T-Bin02 b | D49: 0.553178 | F49: 49 | G49: 620 | H49: 47.24834 | J49: R-Bin03 a | K49: 0.547637 | M49: 620 | N49: 47.24834 | O49: 51 | P49: Q18 | Q49: 51 | R49: 49 | S49: 620 | T49: 32.4352 | V49: R-Bin03 a | W49: 0.548553 | Y49: 620 | Z49: 32.4352 | AB49: Q18 | AC49: 99 | AN49: T-Bin02 b | AP49: 620 | AQ49: 0.2448975959
A50: T-Bin03 a | B50: 0.454695 | C50: T-Bin03 a | D50: 0.550042 | F50: 50 | G50: 625 | H50: 44.70878 | J50: R-Bin03 b | K50: 0.836716 | M50: 625 | N50: 44.70878 | P50: R Lightness | Q50: 3 | R50: 50 | S50: 625 | T50: 31.89643 | V50: R-Bin03 b | W50: 0.836116 | Y50: 625 | Z50: 31.89643 | AB50: R Lightness | AC50: 0 | AN50: T-Bin03 a | AP50: 625 | AQ50: 0.2336033755
A51: T-Bin03 b | B51: 0.851682 | C51: T-Bin03 b | D51: 0.825802 | F51: 51 | G51: 630 | H51: 41.86608 | J51: R-Bin04 a | K51: 0.166316 | M51: 630 | N51: 41.86608 | P51: R Chroma | Q51: 2 | R51: 51 | S51: 630 | T51: 31.51837 | V51: R-Bin04 a | W51: 0.181047 | Y51: 630 | Z51: 31.51837 | AB51: R Chroma | AC51: 0 | AN51: T-Bin03 b | AP51: 630 | AQ51: 0.2205002701
A52: T-Bin04 a | B52: 0.115262 | C52: T-Bin04 a | D52: 0.189714 | F52: 52 | G52: 635 | H52: 39.11513 | J52: R-Bin04 b | K52: 0.986073 | M52: 635 | N52: 39.11513 | P52: R Hue | Q52: 0 | R52: 52 | S52: 635 | T52: 31.88272 | V52: R-Bin04 b | W52: 0.983474 | Y52: 635 | Z52: 31.88272 | AB52: R Hue | AC52: 0 | AN52: T-Bin04 a | AP52: 635 | AQ52: 0.2076465791
A53: T-Bin04 b | B53: 0.985222 | C53: T-Bin04 b | D53: 0.97069 | F53: 53 | G53: 640 | H53: 36.29719 | J53: R-Bin05 a | K53: -0.116158 | M53: 640 | N53: 36.29719 | P53: R/Y Lightness | Q53: 0 | R53: 53 | S53: 640 | T53: 31.99883 | V53: R-Bin05 a | W53: -0.107809 | Y53: 640 | Z53: 31.99883 | AB53: R/Y Lightness | AC53: 0 | AN53: T-Bin04 b | AP53: 640 | AQ53: 0.1942044854
A54: T-Bin05 a | B54: -0.140855 | C54: T-Bin05 a | D54: -0.09611 | F54: 54 | G54: 645 | H54: 33.35411 | J54: R-Bin05 b | K54: 0.993231 | M54: 645 | N54: 33.35411 | P54: R/Y Chroma | Q54: 1 | R54: 54 | S54: 645 | T54: 31.50954 | V54: R-Bin05 b | W54: 0.994172 | Y54: 645 | Z54: 31.50954 | AB54: R/Y Chroma | AC54: 0 | AN54: T-Bin05 a | AP54: 645 | AQ54: 0.1798520319
A55: T-Bin05 b | B55: 0.977654 | C55: T-Bin05 b | D55: 0.977905 | F55: 55 | G55: 650 | H55: 30.46853 | J55: R-Bin06 a | K55: -0.546519 | M55: 650 | N55: 30.46853 | P55: R/Y Hue | Q55: -2 | R55: 55 | S55: 650 | T55: 30.99619 | V55: R-Bin06 a | W55: -0.524015 | Y55: 650 | Z55: 30.99619 | AB55: R/Y Hue | AC55: 0 | AN55: T-Bin05 b | AP55: 650 | AQ55: 0.165565992
A56: T-Bin06 a | B56: -0.535489 | C56: T-Bin06 a | D56: -0.510841 | F56: 56 | G56: 655 | H56: 27.64569 | J56: R-Bin06 b | K56: 0.837446 | M56: 655 | N56: 27.64569 | P56: Y Lightness | Q56: 0 | R56: 56 | S56: 655 | T56: 30.83213 | V56: R-Bin06 b | W56: 0.851709 | Y56: 655 | Z56: 30.83213 | AB56: Y Lightness | AC56: 0 | AN56: T-Bin06 a | AP56: 655 | AQ56: 0.1513822693
A57: T-Bin06 b | B57: 0.846314 | C57: T-Bin06 b | D57: 0.838868 | F57: 57 | G57: 660 | H57: 25.30733 | J57: R-Bin07 a | K57: -0.85276 | M57: 660 | N57: 25.30733 | P57: Y Chroma | Q57: 0 | R57: 57 | S57: 660 | T57: 31.51024 | V57: R-Bin07 a | W57: -0.831868 | Y57: 660 | Z57: 31.51024 | AB57: Y Chroma | AC57: 0 | AN57: T-Bin06 b | AP57: 660 | AQ57: 0.139635724
A58: T-Bin07 a | B58: -0.804006 | C58: T-Bin07 a | D58: -0.819446 | F58: 58 | G58: 665 | H58: 23.26774 | J58: R-Bin07 b | K58: 0.522302 | M58: 665 | N58: 23.26774 | P58: Y Hue | Q58: -2 | R58: 58 | S58: 665 | T58: 32.263 | V58: R-Bin07 b | W58: 0.554973 | Y58: 665 | Z58: 32.263 | AB58: Y Hue | AC58: 0 | AN58: T-Bin07 a | AP58: 665 | AQ58: 0.1293546738
A59: T-Bin07 b | B59: 0.513698 | C59: T-Bin07 b | D59: 0.542343 | F59: 59 | G59: 670 | H59: 21.50805 | J59: R-Bin08 a | K59: -0.988515 | M59: 670 | N59: 21.50805 | P59: Y/G Lightness | Q59: 0 | R59: 59 | S59: 670 | T59: 32.3872 | V59: R-Bin08 a | W59: -0.989758 | Y59: 670 | Z59: 32.3872 | AB59: Y/G Lightness | AC59: 0 | AN59: T-Bin07 b | AP59: 670 | AQ59: 0.1204708897
A60: T-Bin08 a | B60: -0.931107 | C60: T-Bin08 a | D60: -0.977546 | F60: 60 | G60: 675 | H60: 19.6887 | J60: R-Bin08 b | K60: 0.15112 | M60: 675 | N60: 19.6887 | P60: Y/G Chroma | Q60: 0 | R60: 60 | S60: 675 | T60: 32.21569 | V60: R-Bin08 b | W60: 0.142753 | Y60: 675 | Z60: 32.21569 | AB60: Y/G Chroma | AC60: 0 | AN60: T-Bin08 a | AP60: 675 | AQ60: 0.1111033341
A61: T-Bin08 b | B61: 0.135471 | C61: T-Bin08 b | D61: 0.131887 | F61: 61 | G61: 680 | H61: 17.91291 | J61: R-Bin09 a | K61: -0.993545 | M61: 680 | N61: 17.91291 | P61: Y/G Hue | Q61: 0 | R61: 61 | S61: 680 | T61: 31.39199 | V61: R-Bin09 a | W61: -0.989709 | Y61: 680 | Z61: 31.39199 | AB61: Y/G Hue | AC61: 0 | AN61: T-Bin08 b | AP61: 680 | AQ61: 0.1018313108
A62: T-Bin09 a | B62: -0.92115 | C62: T-Bin09 a | D62: -0.979474 | F62: 62 | G62: 685 | H62: 16.05528 | J62: R-Bin09 b | K62: -0.113437 | M62: 685 | N62: 16.05528 | P62: G Lightness | Q62: 0 | R62: 62 | S62: 685 | T62: 29.20349 | V62: R-Bin09 b | W62: -0.143095 | Y62: 685 | Z62: 29.20349 | AB62: G Lightness | AC62: 0 | AN62: T-Bin09 a | AP62: 685 | AQ62: 0.09194216645
A63: T-Bin09 b | B63: -0.165129 | C63: T-Bin09 b | D63: -0.156267 | F63: 63 | G63: 690 | H63: 14.52068 | J63: R-Bin10 a | K63: -0.870587 | M63: 690 | N63: 14.52068 | P63: G Chroma | Q63: 0 | R63: 63 | S63: 690 | T63: 27.98494 | V63: R-Bin10 a | W63: -0.857875 | Y63: 690 | Z63: 27.98494 | AB63: G Chroma | AC63: 0 | AN63: T-Bin09 b | AP63: 690 | AQ63: 0.08376109051
A64: T-Bin10 a | B64: -0.763296 | C64: T-Bin10 a | D64: -0.851411 | F64: 64 | G64: 695 | H64: 13.57545 | J64: R-Bin10 b | K64: -0.492015 | M64: 695 | N64: 13.57545 | P64: G Hue | Q64: =IF($A$1="",NA(),INDEX($B$1:$B$300,MATCH(P64,$A$1:$A$300,0))) -> 1 | R64: 64 | S64: 695 | T64: 28.82901 | V64: R-Bin10 b | W64: -0.513859 | Y64: 695 | Z64: 28.82901 | AB64: G Hue | AC64: =IF($C$1="",NA(),INDEX($D$1:$D$300,MATCH(AB64,$C$1:$C$300,0))) -> 0 | AN64: T-Bin10 a | AP64: 695 | AQ64: 0.07887607959
A65: T-Bin10 b | B65: -0.555085 | C65: T-Bin10 b | D65: -0.522107 | F65: 65 | G65: 700 | H65: 13.04884 | J65: R-Bin11 a | K65: -0.566742 | M65: 700 | N65: 13.04884 | P65: G/C Lightness | Q65: 0 | R65: 65 | S65: 700 | T65: 29.97842 | V65: R-Bin11 a | W65: -0.557915 | Y65: 700 | Z65: 29.97842 | AB65: G/C Lightness | AC65: 0 | AN65: T-Bin10 b | AP65: 700 | AQ65: 0.07636181168
A66: T-Bin11 a | B66: -0.478166 | C66: T-Bin11 a | D66: -0.558831 | F66: 66 | G66: 705 | H66: 12.82012 | J66: R-Bin11 b | K66: -0.823895 | M66: =IF(G66="",NA(),ROUND(G66,0)) -> 705 | N66: =IF(H66="",NA(),H66) -> 12.82012 | P66: G/C Chroma | Q66: 0 | R66: 66 | S66: 705 | T66: 30.92575 | V66: R-Bin11 b | W66: -0.829898 | Y66: =IF(S66="",NA(),ROUND(S66,0)) -> 705 | Z66: =IF(T66="",NA(),T66) -> 30.92575 | AB66: G/C Chroma | AC66: 0 | AN66: T-Bin11 a | AP66: =IF(G66="",NA(),G66) -> 705 | AQ66: =IF(AP66="",NA(),H66*AP66*0.00836/1000) -> 0.07555922326
A67: T-Bin11 b | B67: -0.913242 | C67: T-Bin11 b | D67: -0.832012 | F67: =F66+1 -> 67 | G67: 710 | H67: 12.3506 | J67: R-Bin12 a | K67: -0.308801 | M67: 710 | N67: 12.3506 | P67: G/C Hue | Q67: 1 | R67: =R66+1 -> 67 | S67: 710 | T67: 31.02068 | V67: R-Bin12 a | W67: -0.152465 | Y67: 710 | Z67: 31.02068 | AB67: G/C Hue | AC67: 0 | AN67: T-Bin11 b | AP67: 710 | AQ67: 0.07330822136
A68: T-Bin12 a | B68: -0.267273 | C68: T-Bin12 a | D68: -0.165443 | F68: 68 | G68: 715 | H68: 11.11841 | J68: R-Bin12 b | K68: -0.951127 | M68: 715 | N68: 11.11841 | P68: C Lightness | Q68: 0 | R68: 68 | S68: 715 | T68: 28.4891 | V68: R-Bin12 b | W68: -0.988309 | Y68: 715 | Z68: 28.4891 | AB68: C Lightness | AC68: 0 | AN68: T-Bin12 a | AP68: 715 | AQ68: 0.06645918393
A69: T-Bin12 b | B69: -1.007155 | C69: T-Bin12 b | D69: -0.985108 | F69: 69 | G69: 720 | H69: 10.23266 | J69: R-Bin13 a | K69: 0.183578 | M69: 720 | N69: 10.23266 | P69: C Chroma | Q69: 0 | R69: 69 | S69: 720 | T69: 25.99418 | V69: R-Bin13 a | W69: 0.165667 | Y69: 720 | Z69: 25.99418 | AB69: C Chroma | AC69: 0 | AN69: T-Bin12 b | AP69: 720 | AQ69: 0.06159242707
A70: T-Bin13 a | B70: 0.13146 | C70: T-Bin13 a | D70: 0.145842 | F70: 70 | G70: =IF(G69="","",IF(INDEX($A$1:$A$500,MATCH("Spe*",$A$1:$A$500,0)+F70)=0,"",INDEX($A$1:$A$500,MATCH("Spe*",$A$1:$A$500,0)+F70))) -> 725 | H70: =IF(H69="","",IF(INDEX($A$1:$A$500,MATCH("Spe*",$A$1:$A$500,0)+F70)=0,"",INDEX($B$1:$B$500,MATCH("Spe*",$A$1:$A$500,0)+F70))) -> 9.8008 | J70: R-Bin13 b | K70: -0.983005 | M70: 725 | N70: 9.8008 | P70: C Hue | Q70: 1 | R70: 70 | S70: =IF(S69="","",IF(INDEX($C$1:$C$500,MATCH("Spe*",$C$1:$C$500,0)+R70)=0,"",INDEX($C$1:$C$500,MATCH("Spe*",$C$1:$C$500,0)+R70))) -> 725 | T70: =IF(T69="","",IF(INDEX($C$1:$C$500,MATCH("Spe*",$C$1:$C$500,0)+R70)=0,"",INDEX($D$1:$D$500,MATCH("Spe*",$C$1:$C$500,0)+R70))) -> 26.14044 | V70: R-Bin13 b | W70: -0.986182 | Y70: 725 | Z70: 26.14044 | AB70: C Hue | AC70: 0 | AN70: T-Bin13 a | AP70: 725 | AQ70: 0.0594026488
A71: T-Bin13 b | B71: -1.051422 | C71: T-Bin13 b | D71: -0.986233 | F71: 71 | G71: 730 | H71: 10.16199 | J71: R-Bin14 a | K71: 0.581565 | M71: 730 | N71: 10.16199 | P71: C/B Lightness | Q71: 1 | R71: 71 | S71: 730 | T71: 28.3384 | V71: R-Bin14 a | W71: 0.598945 | Y71: 730 | Z71: 28.3384 | AB71: C/B Lightness | AC71: 0 | AN71: T-Bin13 b | AP71: 730 | AQ71: 0.06201659257
A72: T-Bin14 a | B72: 0.544645 | C72: T-Bin14 a | D72: 0.580316 | F72: 72 | G72: 735 | H72: 10.65001 | J72: R-Bin14 b | K72: -0.8135 | M72: 735 | N72: 10.65001 | P72: C/B Chroma | Q72: 0 | R72: 72 | S72: 735 | T72: 31.43642 | V72: R-Bin14 b | W72: -0.80079 | Y72: 735 | Z72: 31.43642 | AB72: C/B Chroma | AC72: 0 | AN72: T-Bin14 a | AP72: 735 | AQ72: 0.06544005145
A73: T-Bin14 b | B73: -0.885061 | C73: T-Bin14 b | D73: -0.801732 | F73: 73 | G73: 740 | H73: 11.0448 | J73: R-Bin15 a | K73: 0.816602 | M73: 740 | N73: 11.0448 | P73: C/B Hue | Q73: -2 | R73: 73 | S73: 740 | T73: 33.73204 | V73: R-Bin15 a | W73: 0.837548 | Y73: 740 | Z73: 33.73204 | AB73: C/B Hue | AC73: 0 | AN73: T-Bin14 b | AP73: 740 | AQ73: 0.06832755072
A74: T-Bin15 a | B74: 0.722154 | C74: T-Bin15 a | D74: 0.820285 | F74: 74 | G74: 745 | H74: 11.26281 | J74: R-Bin15 b | K74: -0.577202 | M74: 745 | N74: 11.26281 | P74: B Lightness | Q74: 0 | R74: 74 | S74: 745 | T74: 34.82974 | V74: R-Bin15 b | W74: -0.546364 | Y74: 745 | Z74: 34.82974 | AB74: B Lightness | AC74: 0 | AN74: T-Bin15 a | AP74: 745 | AQ74: 0.07014703324
A75: T-Bin15 b | B75: -0.690711 | C75: T-Bin15 b | D75: -0.560968 | F75: 75 | G75: 750 | H75: 11.17335 | J75: R-Bin16 a | K75: =IF($A$1="",NA(),INDEX($B$1:$B$300,MATCH(J75,$A$1:$A$300,0))) -> 0.985124 | M75: 750 | N75: 11.17335 | P75: B Chroma | Q75: -1 | R75: 75 | S75: 750 | T75: 34.29447 | V75: R-Bin16 a | W75: =IF($C$1="",NA(),INDEX($D$1:$D$300,MATCH(V75,$C$1:$C$300,0))) -> 0.986995 | Y75: 750 | Z75: 34.29447 | AB75: B Chroma | AC75: 0 | AN75: T-Bin15 b | AP75: 750 | AQ75: 0.0700569045
A76: T-Bin16 a | B76: 0.909974 | C76: T-Bin16 a | D76: 0.975479 | F76: 76 | G76: 755 | H76: 9.80141 | J76: R-Bin16 b | K76: -0.171848 | M76: 755 | N76: 9.80141 | P76: B Hue | Q76: -1 | R76: 76 | S76: 755 | T76: 29.90155 | V76: R-Bin16 b | W76: -0.160751 | Y76: 755 | Z76: 29.90155 | AB76: B Hue | AC76: 0 | AN76: T-Bin16 a | AP76: 755 | AQ76: 0.06186453964
A77: T-Bin16 b | B77: -0.269621 | C77: T-Bin16 b | D77: -0.163008 | F77: 77 | G77: 760 | H77: 7.57485 | J77: T-Bin01 a | K77: 0.871461 | M77: 760 | N77: 7.57485 | P77: B/M Lightness | Q77: 1 | R77: 77 | S77: 760 | T77: 23.06175 | V77: T-Bin01 a | W77: 0.965486 | Y77: 760 | Z77: 23.06175 | AB77: B/M Lightness | AC77: 0 | AN77: T-Bin16 b | AP77: 760 | AQ77: 0.04812756696
A78: Rf_Bin01 | B78: 82 | C78: Rf_Bin01 | D78: 98 | F78: 78 | G78: 765 | H78: 7.42204 | J78: T-Bin01 b | K78: 0.203593 | M78: 765 | N78: 7.42204 | P78: B/M Chroma | Q78: 0 | R78: 78 | S78: 765 | T78: 23.77815 | V78: T-Bin01 b | W78: 0.219456 | Y78: 765 | Z78: 23.77815 | AB78: B/M Chroma | AC78: 0 | AN78: Rf_Bin01 | AP78: 765 | AQ78: 0.04746691462
A79: Rf_Bin02 | B79: 86 | C79: Rf_Bin02 | D79: 98 | F79: 79 | G79: 770 | H79: 9.35777 | J79: T-Bin02 a | K79: 0.738606 | M79: 770 | N79: 9.35777 | P79: B/M Hue | Q79: 3 | R79: 79 | S79: 770 | T79: 30.25683 | V79: T-Bin02 a | W79: 0.825548 | Y79: 770 | Z79: 30.25683 | AB79: B/M Hue | AC79: 0 | AN79: Rf_Bin02 | AP79: 770 | AQ79: 0.06023783704
A80: Rf_Bin03 | B80: 82 | C80: Rf_Bin03 | D80: 98 | F80: 80 | G80: 775 | H80: 10.22785 | J80: T-Bin02 b | K80: 0.57585 | M80: 775 | N80: 10.22785 | P80: M Lightness | Q80: 1 | R80: 80 | S80: 775 | T80: 33.22847 | V80: T-Bin02 b | W80: 0.553178 | Y80: 775 | Z80: 33.22847 | AB80: M Lightness | AC80: 0 | AN80: Rf_Bin03 | AP80: 775 | AQ80: 0.06626624015
A81: Rf_Bin04 | B81: 90 | C81: Rf_Bin04 | D81: 98 | F81: 81 | G81: 780 | H81: 10.4739 | J81: T-Bin03 a | K81: 0.454695 | M81: 780 | N81: 10.4739 | P81: M Chroma | Q81: 0 | R81: 81 | S81: 780 | T81: 33.25008 | V81: T-Bin03 a | W81: 0.550042 | Y81: 780 | Z81: 33.25008 | AB81: M Chroma | AC81: 0 | AN81: Rf_Bin04 | AP81: 780 | AQ81: 0.06829820712
A82: Rf_Bin05 | B82: 92 | C82: Rf_Bin05 | D82: 97 | F82: 82 | J82: T-Bin03 b | K82: 0.851682 | P82: M Hue | Q82: 3 | R82: 82 | V82: T-Bin03 b | W82: 0.825802 | AB82: M Hue | AC82: 0 | AN82: Rf_Bin05
A83: Rf_Bin06 | B83: 95 | C83: Rf_Bin06 | D83: 97 | F83: 83 | J83: T-Bin04 a | K83: 0.115262 | P83: M/R Lightness | Q83: 4 | R83: 83 | V83: T-Bin04 a | W83: 0.189714 | Y83: =IF(S83="",NA(),ROUND(S83,0)) ->  | Z83: =IF(T83="",NA(),T83) ->  | AB83: M/R Lightness | AC83: 0 | AN83: Rf_Bin06
A84: Rf_Bin07 | B84: 92 | C84: Rf_Bin07 | D84: 97 | F84: 84 | J84: T-Bin04 b | K84: 0.985222 | P84: M/R Chroma | Q84: 1 | R84: 84 | V84: T-Bin04 b | W84: 0.97069 | AB84: M/R Chroma | AC84: 0 | AN84: Rf_Bin07
A85: Rf_Bin08 | B85: 90 | C85: Rf_Bin08 | D85: 98 | F85: 85 | J85: T-Bin05 a | K85: -0.140855 | P85: M/R Hue | Q85: 4 | R85: 85 | V85: T-Bin05 a | W85: -0.09611 | AB85: M/R Hue | AC85: 0 | AN85: Rf_Bin08
A86: Rf_Bin09 | B86: 87 | C86: Rf_Bin09 | D86: 98 | F86: 86 | J86: T-Bin05 b | K86: 0.977654 | R86: 86 | V86: T-Bin05 b | W86: 0.977905 | AN86: Rf_Bin09
A87: Rf_Bin10 | B87: 80 | C87: Rf_Bin10 | D87: 98 | F87: 87 | J87: T-Bin06 a | K87: -0.535489 | R87: 87 | V87: T-Bin06 a | W87: -0.510841 | AN87: Rf_Bin10
A88: Rf_Bin11 | B88: 81 | C88: Rf_Bin11 | D88: 99 | F88: 88 | J88: T-Bin06 b | K88: 0.846314 | R88: 88 | V88: T-Bin06 b | W88: 0.838868 | AN88: Rf_Bin11
A89: Rf_Bin12 | B89: 86 | C89: Rf_Bin12 | D89: 98 | F89: 89 | J89: T-Bin07 a | K89: -0.804006 | R89: 89 | V89: T-Bin07 a | W89: -0.819446 | AN89: Rf_Bin12
A90: Rf_Bin13 | B90: 87 | C90: Rf_Bin13 | D90: 98 | F90: 90 | J90: T-Bin07 b | K90: 0.513698 | R90: 90 | V90: T-Bin07 b | W90: 0.542343 | AN90: Rf_Bin13
A91: Rf_Bin14 | B91: 89 | C91: Rf_Bin14 | D91: 97 | F91: 91 | J91: T-Bin08 a | K91: -0.931107 | R91: 91 | V91: T-Bin08 a | W91: -0.977546 | AN91: Rf_Bin14
A92: Rf_Bin15 | B92: 80 | C92: Rf_Bin15 | D92: 97 | F92: 92 | J92: T-Bin08 b | K92: 0.135471 | R92: 92 | V92: T-Bin08 b | W92: 0.131887 | AN92: Rf_Bin15
A93: Rf_Bin16 | B93: 80 | C93: Rf_Bin16 | D93: 98 | F93: 93 | J93: T-Bin09 a | K93: -0.92115 | R93: 93 | V93: T-Bin09 a | W93: -0.979474 | AN93: Rf_Bin16
A94: Chromashift01 [%] | B94: -10 | C94: Chromashift01 [%] | D94: -1 | F94: 94 | J94: T-Bin09 b | K94: -0.165129 | R94: 94 | V94: T-Bin09 b | W94: -0.156267 | AN94: Chromashift01 [%]
A95: Chromashift02 [%] | B95: -7 | C95: Chromashift02 [%] | D95: -1 | F95: 95 | J95: T-Bin10 a | K95: -0.763296 | R95: 95 | V95: T-Bin10 a | W95: -0.851411 | AN95: Chromashift02 [%]
A96: Chromashift03 [%] | B96: -4 | C96: Chromashift03 [%] | D96: -1 | F96: 96 | J96: T-Bin10 b | K96: -0.555085 | R96: 96 | V96: T-Bin10 b | W96: -0.522107 | AN96: Chromashift03 [%]
A97: Chromashift04 [%] | B97: -1 | C97: Chromashift04 [%] | D97: -1 | F97: 97 | J97: T-Bin11 a | K97: -0.478166 | R97: 97 | V97: T-Bin11 a | W97: -0.558831 | AN97: Chromashift04 [%]
A98: Chromashift05 [%] | B98: -1 | C98: Chromashift05 [%] | D98: -2 | F98: 98 | J98: T-Bin11 b | K98: -0.913242 | R98: 98 | V98: T-Bin11 b | W98: -0.832012 | Y98: =IF(S98="",NA(),ROUND(S98,0)) ->  | Z98: =IF(T98="",NA(),T98) ->  | AN98: Chromashift05 [%]
A99: Chromashift06 [%] | B99: 0 | C99: Chromashift06 [%] | D99: -2 | F99: 99 | J99: T-Bin12 a | K99: -0.267273 | R99: 99 | V99: T-Bin12 a | W99: -0.165443 | AN99: Chromashift06 [%]
A100: Chromashift07 [%] | B100: -5 | C100: Chromashift07 [%] | D100: -2 | F100: 100 | J100: T-Bin12 b | K100: -1.007155 | R100: 100 | V100: T-Bin12 b | W100: -0.985108 | AN100: Chromashift07 [%]
A101: Chromashift08 [%] | B101: -6 | C101: Chromashift08 [%] | D101: -1 | F101: 101 | J101: T-Bin13 a | K101: 0.13146 | R101: 101 | V101: T-Bin13 a | W101: 0.145842 | AN101: Chromashift08 [%]
A102: Chromashift09 [%] | B102: -6 | C102: Chromashift09 [%] | D102: -1 | F102: 102 | J102: T-Bin13 b | K102: -1.051422 | R102: 102 | V102: T-Bin13 b | W102: -0.986233 | AN102: Chromashift09 [%]
A103: Chromashift10 [%] | B103: -5 | C103: Chromashift10 [%] | D103: 0 | F103: 103 | J103: T-Bin14 a | K103: 0.544645 | R103: 103 | V103: T-Bin14 a | W103: 0.580316 | AN103: Chromashift10 [%]
A104: Chromashift11 [%] | B104: 3 | C104: Chromashift11 [%] | D104: 0 | F104: 104 | J104: T-Bin14 b | K104: -0.885061 | R104: 104 | V104: T-Bin14 b | W104: -0.801732 | AN104: Chromashift11 [%]
A105: Chromashift12 [%] | B105: 5 | C105: Chromashift12 [%] | D105: 0 | F105: 105 | J105: T-Bin15 a | K105: 0.722154 | R105: 105 | V105: T-Bin15 a | W105: 0.820285 | AN105: Chromashift12 [%]
A106: Chromashift13 [%] | B106: 6 | C106: Chromashift13 [%] | D106: 0 | F106: 106 | J106: T-Bin15 b | K106: -0.690711 | R106: 106 | V106: T-Bin15 b | W106: -0.560968 | AN106: Chromashift13 [%]
A107: Chromashift14 [%] | B107: 4 | C107: Chromashift14 [%] | D107: -1 | F107: 107 | J107: T-Bin16 a | K107: =IF($A$1="",NA(),INDEX($B$1:$B$300,MATCH(J107,$A$1:$A$300,0))) -> 0.909974 | R107: 107 | V107: T-Bin16 a | W107: =IF($C$1="",NA(),INDEX($D$1:$D$300,MATCH(V107,$C$1:$C$300,0))) -> 0.975479 | AN107: Chromashift14 [%]
A108: Chromashift15 [%] | B108: -2 | C108: Chromashift15 [%] | D108: -1 | F108: 108 | J108: T-Bin16 b | K108: -0.269621 | R108: 108 | V108: T-Bin16 b | W108: -0.163008 | AN108: Chromashift15 [%]
A109: Chromashift16 [%] | B109: -5 | C109: Chromashift16 [%] | D109: -1 | F109: 109 | I109: 1 | J109: Rf_Bin01 | K109: =IF($A$1="",NA(),INDEX($B$1:$B$300,MATCH(J109,$A$1:$A$300,0))) -> 82 | R109: 109 | U109: 1 | V109: Rf_Bin01 | W109: 98 | AN109: Chromashift16 [%]
A110: Hueshift01 | B110: 0 | C110: Hueshift01 | D110: 0 | F110: 110 | I110: 2 | J110: Rf_Bin02 | K110: 86 | R110: 110 | U110: 2 | V110: Rf_Bin02 | W110: 98 | AN110: Hueshift01
A111: Hueshift02 | B111: 0.05 | C111: Hueshift02 | D111: 0 | F111: 111 | I111: 3 | J111: Rf_Bin03 | K111: 82 | R111: 111 | U111: 3 | V111: Rf_Bin03 | W111: 98 | AN111: Hueshift02
A112: Hueshift03 | B112: 0.09 | C112: Hueshift03 | D112: -0.01 | F112: 112 | I112: 4 | J112: Rf_Bin04 | K112: 90 | R112: 112 | U112: 4 | V112: Rf_Bin04 | W112: 98 | AN112: Hueshift03
A113: Hueshift04 | B113: 0.05 | C113: Hueshift04 | D113: -0.01 | F113: 113 | I113: 5 | J113: Rf_Bin05 | K113: 92 | R113: 113 | U113: 5 | V113: Rf_Bin05 | W113: 97 | AN113: Hueshift04
A114: Hueshift05 | B114: 0.03 | C114: Hueshift05 | D114: -0.01 | F114: 114 | I114: 6 | J114: Rf_Bin06 | K114: 95 | R114: 114 | U114: 6 | V114: Rf_Bin06 | W114: 97 | AN114: Hueshift05
A115: Hueshift06 | B115: -0.01 | C115: Hueshift06 | D115: 0 | F115: 115 | I115: 7 | J115: Rf_Bin07 | K115: 92 | R115: 115 | U115: 7 | V115: Rf_Bin07 | W115: 97 | AN115: Hueshift06
A116: Hueshift07 | B116: -0.02 | C116: Hueshift07 | D116: 0 | F116: 116 | I116: 8 | J116: Rf_Bin08 | K116: 90 | R116: 116 | U116: 8 | V116: Rf_Bin08 | W116: 98 | AN116: Hueshift07
A117: Hueshift08 | B117: 0 | C117: Hueshift08 | D117: 0.01 | F117: 117 | I117: 9 | J117: Rf_Bin09 | K117: 87 | R117: 117 | U117: 9 | V117: Rf_Bin09 | W117: 98 | AN117: Hueshift08
A118: Hueshift09 | B118: 0.06 | C118: Hueshift09 | D118: 0.01 | F118: 118 | I118: 10 | J118: Rf_Bin10 | K118: 80 | R118: 118 | U118: 10 | V118: Rf_Bin10 | W118: 98 | AN118: Hueshift09
A119: Hueshift10 | B119: 0.11 | C119: Hueshift10 | D119: 0.01 | F119: 119 | I119: 11 | J119: Rf_Bin11 | K119: 81 | R119: 119 | U119: 11 | V119: Rf_Bin11 | W119: 99 | AN119: Hueshift10
A120: Hueshift11 | B120: 0.12 | C120: Hueshift11 | D120: 0 | F120: 120 | I120: 12 | J120: Rf_Bin12 | K120: 86 | R120: 120 | U120: 12 | V120: Rf_Bin12 | W120: 98 | AN120: Hueshift11
A121: Hueshift12 | B121: 0.05 | C121: Hueshift12 | D121: -0.01 | F121: 121 | I121: 13 | J121: Rf_Bin13 | K121: 87 | R121: 121 | U121: 13 | V121: Rf_Bin13 | W121: 98 | AN121: Hueshift12
A122: Hueshift13 | B122: -0.06 | C122: Hueshift13 | D122: -0.02 | F122: 122 | I122: 14 | J122: Rf_Bin14 | K122: 89 | R122: 122 | U122: 14 | V122: Rf_Bin14 | W122: 97 | AN122: Hueshift13
A123: Hueshift14 | B123: -0.07 | C123: Hueshift14 | D123: -0.02 | F123: 123 | I123: 15 | J123: Rf_Bin15 | K123: 80 | R123: 123 | U123: 15 | V123: Rf_Bin15 | W123: 97 | AN123: Hueshift14
A124: Hueshift15 | B124: -0.15 | C124: Hueshift15 | D124: -0.02 | F124: 124 | I124: 16 | J124: Rf_Bin16 | K124: 80 | R124: 124 | U124: 16 | V124: Rf_Bin16 | W124: 98 | AN124: Hueshift15
A125: Hueshift16 | B125: -0.11 | C125: Hueshift16 | D125: 0 | F125: 125 | I125: 1 | J125: Chromashift01 [%] | K125: -10 | R125: 125 | U125: 1 | V125: Chromashift01 [%] | W125: -1 | AN125: Hueshift16
A126: Flicker Index | B126: 0.051 | C126: Flicker Index | D126: 0.002 | F126: 126 | I126: 2 | J126: Chromashift02 [%] | K126: -7 | R126: 126 | U126: 2 | V126: Chromashift02 [%] | W126: -1 | AN126: Flicker Index
A127: Flicker [Hz] | B127: 99.9 | C127: Flicker [Hz] | D127: 0 | F127: 127 | I127: 3 | J127: Chromashift03 [%] | K127: -4 | R127: 127 | U127: 3 | V127: Chromashift03 [%] | W127: -1 | AN127: Flicker [Hz]
A128: Flicker [%] | B128: 17.2 | C128: Flicker [%] | D128: 1 | F128: 128 | I128: 4 | J128: Chromashift04 [%] | K128: -1 | R128: 128 | U128: 4 | V128: Chromashift04 [%] | W128: -1 | AN128: Flicker [%]
A129: Ra | B129: 84.72 | C129: Ra | D129: 97.6 | F129: 129 | I129: 5 | J129: Chromashift05 [%] | K129: -1 | R129: 129 | U129: 5 | V129: Chromashift05 [%] | W129: -2 | AN129: Ra
A130: Re | B130: 78.51 | C130: Re | D130: 96.84 | F130: 130 | I130: 6 | J130: Chromashift06 [%] | K130: 0 | M130: =IF(G130="",NA(),ROUND(G130,0)) ->  | N130: =IF(H130="",NA(),H130) ->  | R130: 130 | U130: 6 | V130: Chromashift06 [%] | W130: -2 | AN130: Re | AP130: =IF(G130="",NA(),G130) ->  | AQ130: =IF(AP130="",NA(),H130*AP130*0.00836/1000) -> 
A131: GAI | B131: 70.46 | C131: GAI | D131: 84.82 | F131: =F130+1 -> 131 | I131: 7 | J131: Chromashift07 [%] | K131: -5 | R131: =R130+1 -> 131 | U131: 7 | V131: Chromashift07 [%] | W131: -2 | AN131: GAI
A132: R1 | B132: 82.78 | C132: R1 | D132: 97.11 | F132: 132 | I132: 8 | J132: Chromashift08 [%] | K132: -6 | R132: 132 | U132: 8 | V132: Chromashift08 [%] | W132: -1 | AN132: R1
A133: R2 | B133: 90.11 | C133: R2 | D133: 98.31 | F133: 133 | I133: 9 | J133: Chromashift09 [%] | K133: -6 | R133: 133 | U133: 9 | V133: Chromashift09 [%] | W133: -1 | AN133: R2
A134: R3 | B134: 95.97 | C134: R3 | D134: 98.94 | F134: 134 | G134: =IF(G133="","",IF(INDEX($A$1:$A$500,MATCH("Spe*",$A$1:$A$500,0)+F134)=0,"",INDEX($A$1:$A$500,MATCH("Spe*",$A$1:$A$500,0)+F134))) ->  | H134: =IF(H133="","",IF(INDEX($A$1:$A$500,MATCH("Spe*",$A$1:$A$500,0)+F134)=0,"",INDEX($B$1:$B$500,MATCH("Spe*",$A$1:$A$500,0)+F134))) ->  | I134: 10 | J134: Chromashift10 [%] | K134: -5 | R134: 134 | S134: =IF(S133="","",IF(INDEX($C$1:$C$500,MATCH("Spe*",$C$1:$C$500,0)+R134)=0,"",INDEX($C$1:$C$500,MATCH("Spe*",$C$1:$C$500,0)+R134))) ->  | T134: =IF(T133="","",IF(INDEX($C$1:$C$500,MATCH("Spe*",$C$1:$C$500,0)+R134)=0,"",INDEX($D$1:$D$500,MATCH("Spe*",$C$1:$C$500,0)+R134))) ->  | U134: 10 | V134: Chromashift10 [%] | W134: 0 | AN134: R3
A135: R4 | B135: 83.5 | C135: R4 | D135: 96.5 | F135: 135 | I135: 11 | J135: Chromashift11 [%] | K135: 3 | R135: 135 | U135: 11 | V135: Chromashift11 [%] | W135: 0 | AN135: R4
A136: R5 | B136: 82.71 | C136: R5 | D136: 97.12 | F136: 136 | I136: 12 | J136: Chromashift12 [%] | K136: 5 | R136: 136 | U136: 12 | V136: Chromashift12 [%] | W136: 0 | AN136: R5
A137: R6 | B137: 86.5 | C137: R6 | D137: 98.12 | F137: 137 | I137: 13 | J137: Chromashift13 [%] | K137: 6 | R137: 137 | U137: 13 | V137: Chromashift13 [%] | W137: 0 | AN137: R6
A138: R7 | B138: 88.13 | C138: R7 | D138: 98.39 | F138: 138 | I138: 14 | J138: Chromashift14 [%] | K138: 4 | R138: 138 | U138: 14 | V138: Chromashift14 [%] | W138: -1 | AN138: R7
A139: R8 | B139: 68.09 | C139: R8 | D139: 96.29 | F139: 139 | I139: 15 | J139: Chromashift15 [%] | K139: =IF($A$1="",NA(),INDEX($B$1:$B$300,MATCH(J139,$A$1:$A$300,0))) -> -2 | R139: 139 | U139: 15 | V139: Chromashift15 [%] | W139: =IF($C$1="",NA(),INDEX($D$1:$D$300,MATCH(V139,$C$1:$C$300,0))) -> -1 | AN139: R8
A140: R9 | B140: 17.21 | C140: R9 | D140: 90.19 | F140: 140 | I140: 16 | J140: Chromashift16 [%] | K140: -5 | R140: 140 | U140: 16 | V140: Chromashift16 [%] | W140: -1 | AN140: R9
A141: R10 | B141: 76.65 | C141: R10 | D141: 97.04 | F141: 141 | I141: 1 | J141: Hueshift01 | K141: 0 | R141: 141 | U141: 1 | V141: Hueshift01 | W141: 0 | AN141: R10
A142: R11 | B142: 82.47 | C142: R11 | D142: 96.22 | F142: 142 | I142: 2 | J142: Hueshift02 | K142: 0.05 | R142: 142 | U142: 2 | V142: Hueshift02 | W142: 0 | AN142: R11
A143: R12 | B143: 64.47 | C143: R12 | D143: 96.12 | F143: 143 | I143: 3 | J143: Hueshift03 | K143: 0.09 | R143: 143 | U143: 3 | V143: Hueshift03 | W143: -0.01 | AN143: R12
A144: R13 | B144: 84.59 | C144: R13 | D144: 97.25 | F144: 144 | I144: 4 | J144: Hueshift04 | K144: 0.05 | R144: 144 | U144: 4 | V144: Hueshift04 | W144: -0.01 | AN144: R13
A145: R14 | B145: 97.9 | C145: R14 | D145: 99.22 | F145: 145 | I145: 5 | J145: Hueshift05 | K145: 0.03 | R145: 145 | U145: 5 | V145: Hueshift05 | W145: -0.01 | AN145: R14
A146: R15 | B146: 76.53 | C146: R15 | D146: 95.84 | F146: 146 | I146: 6 | J146: Hueshift06 | K146: -0.01 | R146: 146 | U146: 6 | V146: Hueshift06 | W146: 0 | AN146: R15
A147: x | B147: 0.3819 | C147: x | D147: 0.3426 | F147: 147 | I147: 7 | J147: Hueshift07 | K147: -0.02 | R147: 147 | U147: 7 | V147: Hueshift07 | W147: 0 | AN147: x
A148: y | B148: 0.3842 | C148: y | D148: 0.3637 | F148: 148 | I148: 8 | J148: Hueshift08 | K148: 0 | R148: 148 | U148: 8 | V148: Hueshift08 | W148: 0.01 | AN148: y
A149: u' | B149: 0.2231 | C149: u' | D149: 0.2052 | F149: 149 | I149: 9 | J149: Hueshift09 | K149: 0.06 | R149: 149 | U149: 9 | V149: Hueshift09 | W149: 0.01 | AN149: u'
A150: v' | B150: 0.505 | C150: v' | D150: 0.4901 | F150: 150 | I150: 10 | J150: Hueshift10 | K150: 0.11 | R150: 150 | U150: 10 | V150: Hueshift10 | W150: 0.01 | AN150: v'
A151: u | B151: 0.2231 | C151: u | D151: 0.2052 | F151: 151 | I151: 11 | J151: Hueshift11 | K151: 0.12 | R151: 151 | U151: 11 | V151: Hueshift11 | W151: 0 | AN151: u
A152: v | B152: 0.3367 | C152: v | D152: 0.3267 | F152: 152 | I152: 12 | J152: Hueshift12 | K152: 0.05 | R152: 152 | U152: 12 | V152: Hueshift12 | W152: -0.01 | AN152: v
A153: PPFD | B153: 45.52 | C153: PPFD | D153: 42.63 | F153: 153 | I153: 13 | J153: Hueshift13 | K153: -0.06 | R153: 153 | U153: 13 | V153: Hueshift13 | W153: -0.02 | AN153: PPFD
A154: PPFD_UV | B154: 0.07 | C154: PPFD_UV | D154: 0.46 | F154: 154 | I154: 14 | J154: Hueshift14 | K154: -0.07 | R154: 154 | U154: 14 | V154: Hueshift14 | W154: -0.02 | AN154: PPFD_UV
A155: PPFD_Blau | B155: 7.94 | C155: PPFD_Blau | D155: 9.9 | F155: 155 | I155: 15 | J155: Hueshift15 | K155: =IF($A$1="",NA(),INDEX($B$1:$B$300,MATCH(J155,$A$1:$A$300,0))) -> -0.15 | R155: 155 | U155: 15 | V155: Hueshift15 | W155: =IF($C$1="",NA(),INDEX($D$1:$D$300,MATCH(V155,$C$1:$C$300,0))) -> -0.02 | AN155: PPFD_Blau
A156: PPFD_Grün | B156: 20.51 | C156: PPFD_Grün | D156: 15.67 | F156: 156 | I156: 16 | J156: Hueshift16 | K156: -0.11 | R156: 156 | U156: 16 | V156: Hueshift16 | W156: 0 | AN156: PPFD_Grün
A157: PPFD_Rot | B157: 17.07 | C157: PPFD_Rot | D157: 17.06 | F157: 157 | R157: 157 | AN157: PPFD_Rot
A158: PPFD_FR | B158: 5.15 | C158: PPFD_FR | D158: 14.76 | F158: 158 | J158: PPFD | K158: =IF($A$1="",NA(),INDEX($B$1:$B$300,MATCH(J158,$A$1:$A$300,0))) -> 45.52 | R158: 158 | V158: PPFD | W158: =IF($C$1="",NA(),INDEX($D$1:$D$300,MATCH(V158,$C$1:$C$300,0))) -> 42.63 | AN158: PPFD_FR
A159: TLCI | B159: 75 | C159: TLCI | D159: 100 | F159: 159 | J159: PPFD_UV | K159: =IF($A$1="",NA(),INDEX($B$1:$B$300,MATCH(J159,$A$1:$A$300,0))) -> 0.07 | R159: 159 | V159: PPFD_UV | W159: =IF($C$1="",NA(),INDEX($D$1:$D$300,MATCH(V159,$C$1:$C$300,0))) -> 0.46 | AN159: TLCI
A160: Q1 | B160: 80 | C160: Q1 | D160: 99 | F160: 160 | J160: PPFD_Blau | R160: 160 | V160: PPFD_Blau | AN160: Q1
A161: Q2 | B161: 86 | C161: Q2 | D161: 99 | F161: 161 | J161: PPFD_Blue | K161: =IF(ISNA(MATCH(J160,$A$1:$A$300,0)),IF($A$1="",NA(),INDEX($B$1:$B$300,MATCH(J161,$A$1:$A$300,0))),IF($A$1="",NA(),INDEX($B$1:$B$300,MATCH(J160,$A$1:$A$300,0)))) -> 7.94 | R161: 161 | V161: PPFD_Blue | W161: =IF(ISNA(MATCH(V160,$C$1:$C$300,0)),IF($C$1="",NA(),INDEX($D$1:$D$300,MATCH(V161,$C$1:$C$300,0))),IF($C$1="",NA(),INDEX($D$1:$D$300,MATCH(V160,$C$1:$C$300,0)))) -> 9.9 | AN161: Q2
A162: Q3 | B162: 86 | C162: Q3 | D162: 99 | F162: 162 | J162: PPFD_Grün | R162: 162 | V162: PPFD_Grün | Y162: =IF(S162="",NA(),ROUND(S162,0)) ->  | Z162: =IF(T162="",NA(),T162) ->  | AN162: Q3
A163: Q4 | B163: 89 | C163: Q4 | D163: 99 | F163: 163 | J163: PPFD_Green | K163: =IF(ISNA(MATCH(J162,$A$1:$A$300,0)),IF($A$1="",NA(),INDEX($B$1:$B$300,MATCH(J163,$A$1:$A$300,0))),IF($A$1="",NA(),INDEX($B$1:$B$300,MATCH(J162,$A$1:$A$300,0)))) -> 20.51 | R163: 163 | V163: PPFD_Green | W163: =IF(ISNA(MATCH(V162,$C$1:$C$300,0)),IF($C$1="",NA(),INDEX($D$1:$D$300,MATCH(V163,$C$1:$C$300,0))),IF($C$1="",NA(),INDEX($D$1:$D$300,MATCH(V162,$C$1:$C$300,0)))) -> 15.67 | AN163: Q4
A164: Q5 | B164: 99 | C164: Q5 | D164: 99 | F164: 164 | J164: PPFD_Rot | R164: 164 | V164: PPFD_Rot | AN164: Q5
A165: Q6 | B165: 76 | C165: Q6 | D165: 99 | F165: 165 | J165: PPFD_Red | K165: =IF(ISNA(MATCH(J164,$A$1:$A$300,0)),IF($A$1="",NA(),INDEX($B$1:$B$300,MATCH(J165,$A$1:$A$300,0))),IF($A$1="",NA(),INDEX($B$1:$B$300,MATCH(J164,$A$1:$A$300,0)))) -> 17.07 | R165: 165 | V165: PPFD_Red | W165: =IF(ISNA(MATCH(V164,$C$1:$C$300,0)),IF($C$1="",NA(),INDEX($D$1:$D$300,MATCH(V165,$C$1:$C$300,0))),IF($C$1="",NA(),INDEX($D$1:$D$300,MATCH(V164,$C$1:$C$300,0)))) -> 17.06 | AN165: Q6
A166: Q7 | B166: 95 | C166: Q7 | D166: 99 | F166: 166 | J166: PPFD_FR | K166: =IF($A$1="",NA(),INDEX($B$1:$B$300,MATCH(J166,$A$1:$A$300,0))) -> 5.15 | R166: 166 | V166: PPFD_FR | W166: =IF($C$1="",NA(),INDEX($D$1:$D$300,MATCH(V166,$C$1:$C$300,0))) -> 14.76 | AN166: Q7
A167: Q8 | B167: 86 | C167: Q8 | D167: 99 | F167: 167 | R167: 167 | AN167: Q8
A168: Q9 | B168: 96 | C168: Q9 | D168: 99 | F168: 168 | R168: 168 | AN168: Q9
A169: Q10 | B169: 85 | C169: Q10 | D169: 99 | F169: 169 | R169: 169 | AN169: Q10
A170: Q11 | B170: 58 | C170: Q11 | D170: 99 | F170: 170 | R170: 170 | AN170: Q11
A171: Q12 | B171: 96 | C171: Q12 | D171: 99 | F171: 171 | R171: 171 | AN171: Q12
A172: Q13 | B172: 83 | C172: Q13 | D172: 99 | F172: 172 | R172: 172 | AN172: Q13
A173: Q14 | B173: 92 | C173: Q14 | D173: 99 | F173: 173 | R173: 173 | AN173: Q14
A174: Q15 | B174: 93 | C174: Q15 | D174: 99 | F174: 174 | R174: 174 | AN174: Q15
A175: Q16 | B175: 50 | C175: Q16 | D175: 99 | F175: 175 | R175: 175 | AN175: Q16
A176: Q17 | B176: 93 | C176: Q17 | D176: 99 | F176: 176 | R176: 176 | AN176: Q17
A177: Q18 | B177: 51 | C177: Q18 | D177: 99 | F177: 177 | R177: 177 | AN177: Q18
A178: R Lightness | B178: 3 | C178: R Lightness | D178: 0 | F178: 178 | R178: 178 | AN178: R Lightness
A179: R Chroma | B179: 2 | C179: R Chroma | D179: 0 | F179: 179 | R179: 179 | AN179: R Chroma
A180: R Hue | B180: 0 | C180: R Hue | D180: 0 | F180: 180 | R180: 180 | AN180: R Hue
A181: R/Y Lightness | B181: 0 | C181: R/Y Lightness | D181: 0 | F181: 181 | R181: 181 | AN181: R/Y Lightness
A182: R/Y Chroma | B182: 1 | C182: R/Y Chroma | D182: 0 | F182: 182 | R182: 182 | AN182: R/Y Chroma
A183: R/Y Hue | B183: -2 | C183: R/Y Hue | D183: 0 | F183: 183 | R183: 183 | AN183: R/Y Hue
A184: Y Lightness | B184: 0 | C184: Y Lightness | D184: 0 | F184: 184 | R184: 184 | AN184: Y Lightness
A185: Y Chroma | B185: 0 | C185: Y Chroma | D185: 0 | F185: 185 | R185: 185 | AN185: Y Chroma
A186: Y Hue | B186: -2 | C186: Y Hue | D186: 0 | F186: 186 | R186: 186 | AN186: Y Hue
A187: Y/G Lightness | B187: 0 | C187: Y/G Lightness | D187: 0 | F187: 187 | R187: 187 | AN187: Y/G Lightness
A188: Y/G Chroma | B188: 0 | C188: Y/G Chroma | D188: 0 | F188: 188 | R188: 188 | AN188: Y/G Chroma
A189: Y/G Hue | B189: 0 | C189: Y/G Hue | D189: 0 | F189: 189 | R189: 189 | AN189: Y/G Hue
A190: G Lightness | B190: 0 | C190: G Lightness | D190: 0 | F190: 190 | R190: 190 | AN190: G Lightness
A191: G Chroma | B191: 0 | C191: G Chroma | D191: 0 | F191: 191 | R191: 191 | AN191: G Chroma
A192: G Hue | B192: 1 | C192: G Hue | D192: 0 | F192: 192 | R192: 192 | AN192: G Hue
A193: G/C Lightness | B193: 0 | C193: G/C Lightness | D193: 0 | F193: 193 | R193: 193 | AN193: G/C Lightness
A194: G/C Chroma | B194: 0 | C194: G/C Chroma | D194: 0 | F194: 194 | M194: =IF(G194="",NA(),ROUND(G194,0)) ->  | N194: =IF(H194="",NA(),H194) ->  | R194: 194 | AN194: G/C Chroma | AP194: =IF(G194="",NA(),G194) ->  | AQ194: =IF(AP194="",NA(),H194*AP194*0.00836/1000) -> 
A195: G/C Hue | B195: 1 | C195: G/C Hue | D195: 0 | F195: =F194+1 -> 195 | R195: =R194+1 -> 195 | AN195: G/C Hue
A196: C Lightness | B196: 0 | C196: C Lightness | D196: 0 | F196: 196 | R196: 196 | AN196: C Lightness
A197: C Chroma | B197: 0 | C197: C Chroma | D197: 0 | F197: 197 | R197: 197 | AN197: C Chroma
A198: C Hue | B198: 1 | C198: C Hue | D198: 0 | F198: 198 | G198: =IF(G197="","",IF(INDEX($A$1:$A$500,MATCH("Spe*",$A$1:$A$500,0)+F198)=0,"",INDEX($A$1:$A$500,MATCH("Spe*",$A$1:$A$500,0)+F198))) ->  | H198: =IF(H197="","",IF(INDEX($A$1:$A$500,MATCH("Spe*",$A$1:$A$500,0)+F198)=0,"",INDEX($B$1:$B$500,MATCH("Spe*",$A$1:$A$500,0)+F198))) ->  | R198: 198 | S198: =IF(S197="","",IF(INDEX($C$1:$C$500,MATCH("Spe*",$C$1:$C$500,0)+R198)=0,"",INDEX($C$1:$C$500,MATCH("Spe*",$C$1:$C$500,0)+R198))) ->  | T198: =IF(T197="","",IF(INDEX($C$1:$C$500,MATCH("Spe*",$C$1:$C$500,0)+R198)=0,"",INDEX($D$1:$D$500,MATCH("Spe*",$C$1:$C$500,0)+R198))) ->  | AN198: C Hue
A199: C/B Lightness | B199: 1 | C199: C/B Lightness | D199: 0 | F199: 199 | R199: 199 | AN199: C/B Lightness
A200: C/B Chroma | B200: 0 | C200: C/B Chroma | D200: 0 | F200: 200 | R200: 200 | AN200: C/B Chroma
... 616 more rows

Sheet Version 2.4 Base
